Workbook

Sheet Cover
B6: In-Conduit Hydropower Project Screening Tool
D7: For Water Supply and Wastewater Treatment Facilities
R8: Water Supply
R9: Wastewater Treatment
C10: Project Name
C11: Project Location | O11: *We can hide calc's or other unseen data anywhere here
C12: Facility Type | F12: Water Supply | O12: *Then set the cell width to 0
C13: Latitude of Project Location | P13: Type | Q13: Methodology
C14: Longitude of Project Location | P14: Conventional | Q14: Simplified
C15: Type of Methodology | F15: Conventional Hydropower | P15: Hydrokinetic | Q15: Detailed
C16: Flow Units | F16: GPM
C19: User Guidance
C20: User Input Cell (blue) | P20: Conventional Hydropower
C21: Default/Calculation Cell (green) | P21: Simplified Conventional Hydropower
P22: Simplified Hydrokinetic
D23: Hydropower….more than just water through the system.
P25: MGD | Q25: Feet of Head
P26: GPM | Q26: PSI
A27: Macros must be enabled | P27: ft³/s
B38: Version 1.0 | F38: User Manual and Instructions | K38: January 2014

Sheet Simplified Hydrokinetic (hidden)
A1: In-Conduit Hydropower Project Screening Tool | AF1: 1 | AG1: =AK34 ->  | AH1: =AVERAGE(AK34) -> 
A2: Hydrokinetic Turbine Energy and Benefit Analysis | J2: circular or square | Z2: In-Conduit Hydropower Project Screening Tool | AF2: 2 | AG2: =SUM($AK$34:$AL$34) ->  | AH2: =AVERAGE(AK34:AL34) ->  | AM2: Onsite
Z3: Financial Evaluation | AF3: 3 | AG3: =SUM($AK$34:$AM$34) ->  | AH3: =AVERAGE(AK34:AM34) ->  | AM3: Grid
B4: Available Energy Analysis | E4: Units | G4: Notes | AF4: 4 | AG4: =SUM($AK$34:$AN$34) ->  | AH4: =AVERAGE(AK34:AN34) -> 
B5: Average Velocity | E5: (ft/s) | Z5: Annual Energy Balance | AF5: 5 | AG5: =SUM($AK$34:$AO$34) ->  | AH5: =AVERAGE(AK34:AO34) ->  | AI5: Proforma
B6: Average Wetted Depth | E6: (ft) | J6: 95% effective area for round and smaller of rectangular dimension | AF6: 6 | AG6: =SUM($AK$34:$AP$34) ->  | AH6: =AVERAGE(AK34:AP34) ->  | AI6: Annual Income
B7: Channel Configuration | F7: Circular | H7: Fill in Blue input cells to estimate project financial and environmental benefits | U7: Axial Flow | AA7: Project name | AE7: =Cover!AF11 -> 0 | AF7: 7 | AG7: =SUM($AK$34:$AQ$34) ->  | AH7: =AVERAGE(AK34:AQ34) ->  | AI7: Year | AK7: =AE17 -> 2014 | AL7: =AK7+1 -> 2015 | AM7: =AL7+1 -> 2016 | AN7: =AM7+1 -> 2017 | AO7: 2018 | AP7: 2019 | AQ7: 2020 | AR7: 2021 | AS7: 2022 | AT7: 2023 | AU7: 2024 | AV7: 2025 | AW7: 2026 | AX7: 2027 | AY7: 2028 | AZ7: 2029 | BA7: 2030 | BB7: 2031 | BC7: 2032 | BD7: =BC7+1 -> 2033 | BE7: 2034 | BF7: 2035 | BG7: 2036 | BH7: 2037 | BI7: 2038 | BJ7: 2039 | BK7: 2040 | BL7: 2041 | BM7: 2042 | BN7: 2043
B8: Channel Average Width (Rectangular Channel Only) | E8: (ft) | L8: Rectangular | N8: Yes | U8: Cross Flow | AA8: Project location | AE8: =Cover!AF12 -> 0 | AF8: 8 | AG8: =SUM($AK$34:$AR$34) ->  | AH8: =AVERAGE(AK34:AR34) ->  | AI8: Year | AK8: 1 | AL8: =AK8+1 -> 2 | AM8: =AL8+1 -> 3 | AN8: 4 | AO8: 5 | AP8: 6 | AQ8: 7 | AR8: 8 | AS8: 9 | AT8: 10 | AU8: 11 | AV8: 12 | AW8: 13 | AX8: 14 | AY8: 15 | AZ8: 16 | BA8: 17 | BB8: 18 | BC8: 19 | BD8: 20 | BE8: 21 | BF8: 22 | BG8: 23 | BH8: 24 | BI8: 25 | BJ8: 26 | BK8: 27 | BL8: 28 | BM8: 29 | BN8: 30
B9: Channel Average Depth (Rectangular Channel Only) | E9: (ft) | L9: Circular | N9: No | O9: Inputs | AA9: Renewable energy delivered | AD9: kWh | AE9: =F14 ->  | AF9: 9 | AG9: =SUM($AK$34:$AS$34) ->  | AH9: =AVERAGE(AK34:AS34) -> 
B10: Channel Average Diameter (Circular Channel Only) | E10: (ft) | AA10: Energy Use | AE10: Onsite | AF10: 10 | AG10: =SUM($AK$34:$AT$34) ->  | AH10: =AVERAGE(AK34:AT34) ->  | AI10: ISO Energy Value | AK10: =AE21 -> 0 | AL10: =AK10+AK10*$AE$22 -> 0 | AM10: =AL10+AL10*$AE$22 -> 0 | AN10: 0 | AO10: 0 | AP10: 0 | AQ10: 0 | AR10: 0 | AS10: 0 | AT10: 0 | AU10: 0 | AV10: 0 | AW10: 0 | AX10: 0 | AY10: 0 | AZ10: 0 | BA10: 0 | BB10: 0 | BC10: 0 | BD10: 0 | BE10: 0 | BF10: 0 | BG10: 0 | BH10: 0 | BI10: 0 | BJ10: 0 | BK10: 0 | BL10: 0 | BM10: 0 | BN10: 0
B11: Intercepted Flow Area | E11: (ft2) | F11: =IF(F7="Circular",((PI()*(F10/2)^2)*0.7),(F8*F9*0.7)) -> 0 | O11: Pipe Diameter, D = | Q11: =F10*12 -> 0 | R11: in | AA11: Energy Type | AE11: =IF(AE10="Onsite", "Retail","Wholesale") -> Retail | AF11: =AF10+1 -> 11 | AG11: =SUM($AK$34:$AU$34) ->  | AH11: =AVERAGE(AK34:AU34) ->  | AI11: Avoided Cost of Energy | AK11: =AE20 -> 0.14 | AL11: =AK11+AK11*$AE$22 -> 0.1435 | AM11: 0.1470875 | AN11: 0.1507646875 | AO11: 0.1545338047 | AP11: 0.1583971498 | AQ11: 0.1623570785 | AR11: 0.1664160055 | AS11: 0.1705764057 | AT11: 0.1748408158 | AU11: 0.1792118362 | AV11: 0.1836921321 | AW11: 0.1882844354 | AX11: 0.1929915463 | AY11: 0.1978163349 | AZ11: 0.2027617433 | BA11: 0.2078307869 | BB11: 0.2130265566 | BC11: 0.2183522205 | BD11: 0.223811026 | BE11: 0.2294063016 | BF11: 0.2351414592 | BG11: 0.2410199957 | BH11: 0.2470454956 | BI11: 0.2532216329 | BJ11: 0.2595521738 | BK11: 0.2660409781 | BL11: 0.2726920026 | BM11: 0.2795093026 | BN11: 0.2864970352
B12: Capacity Factor | E12: (%) | F12: 0.6 | AA12: Project Type | AE12: =Cost!AE8 -> 0 | AF12: =AF11+1 -> 12 | AG12: =SUM($AK$34:$AV$34) ->  | AH12: =AVERAGE(AK34:AV34) ->  | AI12: Power Sales Income | AK12: =AK11*$AE$19 ->  | AL12: =AL11*$AE$19 -> 
B13: Power Output | E13: (kW) | F13: =IF(F7="rectangular",((PI()*((0.5*MIN(F8,F6))^2)*(F5^3)*62.4*0.25)/1000),(Q29*(F5^3)*62.4*0.25)/1000) ->  | K13: max power P=½ρV 3 | AF13: 13 | AG13: =SUM($AK$34:$AW$34) ->  | AH13: =AVERAGE(AK34:AW34) ->  | AI13: REC Value | AK13: =IF(F20="Yes",AE24,0) -> 0 | AL13: =AK13+(AK13*$AE$25) -> 0 | AM13: =AL13+(AL13*$AE$25) -> 0 | AN13: 0 | AO13: 0 | AP13: 0 | AQ13: 0 | AR13: 0 | AS13: 0 | AT13: 0 | AU13: 0 | AV13: 0 | AW13: 0 | AX13: 0 | AY13: 0 | AZ13: 0 | BA13: 0 | BB13: 0 | BC13: 0 | BD13: 0 | BE13: 0 | BF13: 0 | BG13: 0 | BH13: 0 | BI13: 0 | BJ13: 0 | BK13: 0 | BL13: 0 | BM13: 0 | BN13: 0
B14: Annual Power Generation | E14: (kWh) | F14: =ROUND(F13*24*365*F12,-2) ->  | J14: 0.6 | K14: Capacity Factor | O14: Depth of flow, y = | Q14: =F6*12 -> 0 | R14: in | Z14: Financial Parameters | AF14: 14 | AG14: =SUM($AK$34:$AX$34) ->  | AH14: =AVERAGE(AK34:AX34) ->  | AI14: REC Income | AK14: =AK13*$AE$9 ->  | AL14: =AL13*$AE$9 -> 
B15: Financial Analysis | E15: Units | G15: Notes
B16: Cost Guideline | E16: ($/kW) | F16: 12000 | M16: (must have y < D/2) | AF16: =AF14+1 -> 15 | AG16: =SUM($AK$34:$AY$34) ->  | AH16: =AVERAGE(AK34:AY34) -> 
B17: Estimated Initial Capital Investment | E17: ($) | F17: =ROUND(F16*F13,-2) ->  | AA17: Project Start-up Year | AD17: yr | AE17: 2014 | AF17: 16 | AG17: =SUM($AK$34:$AZ$34) ->  | AH17: =AVERAGE(AK34:AZ34) ->  | AI17: Estimated Annual Income | AK17: =AK14+AK12 ->  | AL17: =AL14+AL12 ->  | AM17: =AM14+AM12 ->  | AN17: =AN14+AN12 -> 
B18: Estimated Annual O&M | E18: ($/Yr) | F18: 8000 | M18: Calculations | AA18: Peak Capacity | AD18: kiwi | AE18: =F13 ->  | AF18: 17 | AG18: =SUM($AK$34:$BA$34) ->  | AH18: =AVERAGE(AK34:BA34) -> 
B19: Energy Rate | E19: ($/kWh) | F19: 0.14 | AA19: Estimated Annual Energy Production | AD19: kWh | AE19: =AE9 ->  | AF19: 18 | AG19: =SUM($AK$34:$BB$34) ->  | AH19: =AVERAGE(AK34:BB34) -> 
B20: REC Availability | F20: No | J20: 2 ft/sec | O20: Pipe Diameter, D = | Q20: =Q11/12 -> 0 | R20: ft | AA20: Initial Avoided Cost of Energy | AD20: $/kWh | AE20: =F19 -> 0.14 | AF20: 19 | AG20: =SUM($AK$34:$BC$34) ->  | AH20: =AVERAGE(AK34:BC34) ->  | AI20: Annual Expenses
B21: Financing Term | E21: (yr) | F21: 27 | J21: 2.5 ft/sec | L21: 1-4 kw | AA21: Initial ISO Energy Value | AD21: $/kWh | AE21: 0 | AF21: 20 | AG21: =SUM($AK$34:$BD$34) ->  | AH21: =AVERAGE(AK34:BD34) -> 
B22: Assumed Financing Rate | E22: (%) | F22: 0.05 | J22: 6ft/sec | O22: Pipe Radius, r = | Q22: =Q20/2 -> 0 | R22: ft | AA22: Assumed Annual Power Rate Escalator | AD22: % | AE22: 0.025 | AF22: 21 | AG22: =SUM($AK$34:$BE$34) ->  | AH22: =AVERAGE(AK34:BE34) ->  | AI22: O&M | AK22: =AE27 -> 8000 | AL22: =AK22+AK22*$AE$33 -> 8280 | AM22: =AL22+AL22*$AE$33 -> 8569.8 | AN22: 8869.743 | AO22: 9180.184005 | AP22: 9501.490445 | AQ22: 9834.042611 | AR22: 10178.2341 | AS22: 10534.4723 | AT22: 10903.17883 | AU22: 11284.79008 | AV22: 11679.75774 | AW22: 12088.54926 | AX22: 12511.64848 | AY22: 12949.55618 | AZ22: 13402.79065 | BA22: 13871.88832 | BB22: 14357.40441 | BC22: 14859.91356 | BD22: 15380.01054 | BE22: 15918.31091 | BF22: 16475.45179 | BG22: 17052.0926 | BH22: 17648.91584 | BI22: 18266.6279 | BJ22: 18905.95987 | BK22: 19567.66847 | BL22: 20252.53687 | BM22: 20961.37566 | BN22: 21695.0238
B23: Project Financial and Environmental Benefits | E23: Units | G23: Notes
B24: Average Annual Project Benefit Over Finance Period | E24: ($) | F24: =ROUND(VLOOKUP(F21,AF1:AH32,3),-2) ->  | AA24: Initial REC Value | AD24: $/kWh | AE24: 0.03 | AF24: =AF22+1 -> 22 | AG24: =SUM($AK$34:$BF$34) ->  | AH24: =AVERAGE(AK34:BF34) -> 
B25: Simple Payback Period | E25: (yr) | F25: =F17/((AE24+AE20)*F14) ->  | O25: Circ. Segment Height, h = | Q25: =Q14/12 -> 0 | R25: ft | AA25: REC Escalator | AD25: % | AE25: 0 | AF25: 23 | AG25: =SUM($AK$34:$BG$34) ->  | AH25: =AVERAGE(AK34:BG34) -> 
B26: Avoided Annual Carbon Dioxide Emissions | E26: (lbs) | F26: =ROUND(AD50,-2) ->  | AF26: 24 | AG26: =SUM($AK$34:$BH$34) ->  | AH26: =AVERAGE(AK34:BH34) -> 
B27: Avoided Annual Sulfur Dioxide Emissions | E27: (lbs) | F27: =ROUND(AD51,-2) ->  | O27: Central Angle, q = | Q27: =2*ACOS((Q22-Q25)/Q22) ->  | R27: radians | AA27: Operations Cost | AE27: =F18 -> 8000 | AF27: 25 | AG27: =SUM($AK$34:$BI$34) ->  | AH27: =AVERAGE(AK34:BI34) -> 
B28: Avoided Annual Nitrogen Oxides Emissions | E28: (lbs) | F28: =ROUND(AD52,-2) ->  | AA28: Maintenance | AE28: 0 | AF28: 26 | AG28: =SUM($AK$34:$BJ$34) ->  | AH28: =AVERAGE(AK34:BJ34) -> 
O29: Cross-Sect. Area, A = | Q29: =(Q22^2)*(Q27-SIN(Q27))/2 ->  | R29: ft2 | AA29: Administration | AE29: 0 | AF29: 27 | AG29: =SUM($AK$34:$BK$34) ->  | AH29: =AVERAGE(AK34:BK34) ->  | AI29: Estimated Total Expenses | AK29: =SUM(AK22:AK28) -> 8000 | AL29: =SUM(AL22:AL28) -> 8280 | AM29: =SUM(AM22:AM28) -> 8569.8 | AN29: =SUM(AN22:AN28) -> 8869.743 | AO29: 9180.184005 | AP29: 9501.490445 | AQ29: 9834.042611 | AR29: 10178.2341 | AS29: 10534.4723 | AT29: 10903.17883 | AU29: 11284.79008 | AV29: 11679.75774 | AW29: 12088.54926 | AX29: 12511.64848 | AY29: 12949.55618 | AZ29: 13402.79065 | BA29: 13871.88832 | BB29: 14357.40441 | BC29: 14859.91356 | BD29: 15380.01054 | BE29: 15918.31091 | BF29: 16475.45179 | BG29: 17052.0926 | BH29: 17648.91584 | BI29: 18266.6279 | BJ29: 18905.95987 | BK29: 19567.66847 | BL29: 20252.53687 | BM29: 20961.37566 | BN29: 21695.0238
AA30: Legal and Accounting | AE30: 0 | AF30: 28 | AG30: =SUM($AK$34:$BL$34) ->  | AH30: =AVERAGE(AK34:BL34) -> 
O31: Wetted Perimeter, P = | Q31: =Q22*Q27 ->  | R31: ft | AA31: Insurance | AE31: 0 | AF31: 29 | AG31: =SUM($AK$34:$BM$34) ->  | AH31: =AVERAGE(AK34:BM34) ->  | AI31: Financing
AA32: Misc. | AE32: 0 | AF32: 30 | AG32: =SUM($AK$34:$BN$34) ->  | AH32: =AVERAGE(AK34:BN34) ->  | AI32: Income Before Loan and Interest Payment | AK32: =AK17-AK29 ->  | AL32: =AL17-AL29 ->  | AM32: =AM17-AM29 ->  | AN32: =AN17-AN29 -> 
O33: Hydraulic Radius, R = | Q33: =Q29/Q31 ->  | R33: ft | AA33: Cost Escalator | AD33: % | AE33: 0.035 | AF33: 31 | AI33: Uniform Annual BTFP LOC Payment | AK33: =IF(AK8<=$AE$39,PMT($AE$38/12,$AE$39*12,$AE$37,0,0)*12,0) ->  | AL33: =IF(AL8<=$AE$39,PMT($AE$38,$AE$39,$AE$37,0,0),0) ->  | BL33: 0 | BM33: 0 | BN33: 0
AF34: 32 | AI34: Annual Benefit | AJ34: =IRR(AK37:AV37,0.1) ->  | AK34: =AK32+AK33 ->  | AL34: =AL32+AL33 -> 
O35: pipe % full [(A/Afull)*100%] = | Q35: =Q29/(PI()*(Q20/2)^2) ->  | AA35: Initial Capital Investment | AE35: =F17 ->  | AF35: 33
AA36: Grant Funding Value | AE36: 0 | AF36: 34
AA37: Total Finance | AE37: =AE35-AE36 ->  | AF37: 35
AA38: Assumed Finance Rate | AD38: % | AE38: =F22 -> 0.05 | AF38: 36
AA39: Financing Term | AD39: yr | AE39: =F21 -> 27 | AF39: 37
AF40: 38
AA41: Average Annual Project Benefit Over Finance Period | AE41: 127489 | AF41: 39
AA42: Simple Payback Period | AD42: yr | AE42: =AE37/AE41 ->  | AF42: 40
AA43: Internal Rate of Return Over Investment Period | AD43: % | AE43: =IRR(AK34:BN34) ->  | AF43: 41
AF44: 42
AF45: 43
AA46: Carbon Dioxide | AC46: lb/kWh | AD46: 1.52 | AF46: 44
AA47: Sulfur Dioxide | AC47: lb/kWh | AD47: 0.008 | AF47: 45 | AM47: =993.2*12 -> 11918.4
AA48: Nitrogen Oxides | AC48: lb/kWh | AD48: 0.0049 | AF48: 46
AF49: 47
AA50: Avoided Annual Carbon Dioxide Emissions | AC50: lbs | AD50: =$AE$9*AD46 ->  | AF50: 48
AA51: Avoided Annual Sulfur Dioxide Emissions | AC51: lbs | AD51: =$AE$9*AD47 ->  | AF51: 49
AA52: Avoided Annual Nitrogen Oxides Emissions | AC52: lbs | AD52: =$AE$9*AD48 ->  | AF52: 50
AF53: 51
AF54: 52
AF55: 53
AF56: 54
AF57: 55
AF58: 56
AF59: 57
AF60: 58
AF61: 59
AF62: 60
AF63: 61

Sheet Simplified Conventional Hydro (hidden)
A1: In-Conduit Hydropower Project Screening Tool | AW1: Sum of annual benefits over finance period | AX1: Average annual benefits
A2: Simplified Conventional Hydropower Energy and Benefit Analysis | AV2: 1 | AW2: =BA35 ->  | AX2: =AVERAGE(BA35) -> 
AP3: In-Conduit Hydropower Project Screening Tool | AV3: 2 | AW3: =SUM($BA$35:$BC$35) ->  | AX3: =AVERAGE(BA35:BB35) ->  | BC3: Onsite
B4: Available Energy Analysis | E4: Units | G4: Notes | AP4: Financial Evaluation | AV4: 3 | AW4: =SUM($BA$35:$BD$35) ->  | AX4: =AVERAGE(BA35:BC35) ->  | BC4: Grid
B5: Average Head Available | E5: (PSI) | AV5: 4 | AW5: =SUM($BA$35:$BE$35) ->  | AX5: =AVERAGE(BA35:BD35) -> 
B6: Average Annual Daily Flow | E6: =Cover!F16 -> GPM | H6: Fill in Blue input cells to estimate project financial and environmental benefits | N6: Head | P6: Stable | AP6: Annual Energy Balance | AV6: 5 | AW6: =SUM($BA$35:$BF$35) ->  | AX6: =AVERAGE(BA35:BE35) ->  | AY6: Proforma
B7: Average Annual Daily Flow | E7: (cfs) | F7: =IF(Cover!F16="ft³/s",F6,IF(Cover!F16="MGD",(F6*1.547223836),(F6)/(7.48*60))) -> 0 | N7: Automatic | P7: Variable | AV7: 6 | AW7: =SUM($BA$35:$BG$35) ->  | AX7: =AVERAGE(BA35:BF35) ->  | AY7: Annual Income
B8: Turbine Selection | F8: Automatic | N8: Manual | AQ8: Project name | AU8: =Cover!AW12 -> 0 | AV8: 7 | AW8: =SUM($BA$35:$BH$35) ->  | AX8: =AVERAGE(BA35:BG35) ->  | AY8: Year | BA8: =AU18 -> 2014 | BB8: =BA8+1 -> 2015 | BC8: =BB8+1 -> 2016 | BD8: =BC8+1 -> 2017 | BE8: 2018 | BF8: 2019 | BG8: 2020 | BH8: 2021 | BI8: 2022 | BJ8: 2023 | BK8: 2024 | BL8: 2025 | BM8: 2026 | BN8: 2027 | BO8: 2028 | BP8: 2029 | BQ8: 2030 | BR8: 2031 | BS8: 2032 | BT8: =BS8+1 -> 2033 | BU8: 2034 | BV8: 2035 | BW8: 2036 | BX8: 2037 | BY8: 2038 | BZ8: 2039 | CA8: 2040 | CB8: 2041 | CC8: 2042 | CD8: 2043
B9: Automatic Turbine Type Selection | AQ9: Project location | AU9: =Cover!AW13 -> 0 | AV9: 8 | AW9: =SUM($BA$35:$BI$35) ->  | AX9: =AVERAGE(BA35:BH35) ->  | AY9: Year | BA9: 1 | BB9: =BA9+1 -> 2 | BC9: =BB9+1 -> 3 | BD9: 4 | BE9: 5 | BF9: 6 | BG9: 7 | BH9: 8 | BI9: 9 | BJ9: 10 | BK9: 11 | BL9: 12 | BM9: 13 | BN9: 14 | BO9: 15 | BP9: 16 | BQ9: 17 | BR9: 18 | BS9: 19 | BT9: 20 | BU9: 21 | BV9: 22 | BW9: 23 | BX9: 24 | BY9: 25 | BZ9: 26 | CA9: 27 | CB9: 28 | CC9: 29 | CD9: 30
B10: Manual Turbine Type Selection | F10: PAT | AQ10: Renewable energy delivered | AT10: kWh | AU10: =F14 ->  | AV10: 9 | AW10: =SUM($BA$35:$BJ$35) ->  | AX10: =AVERAGE(BA35:BI35) -> 
B11: Turbine Type | F11: =IF(Simp_Turbine_Select="Automatic",F9,F10) -> 0 | K11: Good | L11: Better | O11: Max Head | P11: Min Head | AQ11: Energy Use | AU11: Onsite | AV11: 10 | AW11: =SUM($BA$35:$BK$35) ->  | AX11: =AVERAGE(BA35:BJ35) ->  | AY11: ISO Energy Value | BA11: =AU22 -> 0 | BB11: =BA11+(BA11*$AU$23) -> 0 | BC11: =BB11+(BB11*$AU$23) -> 0 | BD11: 0 | BE11: 0 | BF11: 0 | BG11: 0 | BH11: 0 | BI11: 0 | BJ11: 0 | BK11: 0 | BL11: 0 | BM11: 0 | BN11: 0 | BO11: 0 | BP11: 0 | BQ11: 0 | BR11: 0 | BS11: 0 | BT11: 0 | BU11: 0 | BV11: 0 | BW11: 0 | BX11: 0 | BY11: 0 | BZ11: 0 | CA11: 0 | CB11: 0 | CC11: 0 | CD11: 0
B12: Annual Capacity Factor | E12: (%) | F12: 0.75 | K12: PAT | L12: Kaplan | N12: PAT | O12: 30 | P12: 150 | Q12: Canyon | AQ12: Energy Type | AU12: =IF(AU11="Onsite", "Retail","Wholesale") -> Retail | AV12: =AV11+1 -> 11 | AW12: =SUM($BA$35:$BL$35) ->  | AX12: =AVERAGE(BA35:BK35) ->  | AY12: Avoided Cost of Energy | BA12: =AU21 -> 0.13 | BB12: =BA12+(BA12*$AU$23) -> 0.13325 | BC12: =BB12+(BB12*$AU$23) -> 0.13658125 | BD12: 0.1399957813 | BE12: 0.1434956758 | BF12: 0.1470830677 | BG12: 0.1507601444 | BH12: 0.154529148 | BI12: 0.1583923767 | BJ12: 0.1623521861 | BK12: 0.1664109907 | BL12: 0.1705712655 | BM12: 0.1748355472 | BN12: 0.1792064358 | BO12: 0.1836865967 | BP12: 0.1882787616 | BQ12: 0.1929857307 | BR12: 0.197810374 | BS12: 0.2027556333 | BT12: 0.2078245241 | BU12: 0.2130201372 | BV12: 0.2183456407 | BW12: 0.2238042817 | BX12: 0.2293993887 | BY12: 0.2351343734 | BZ12: 0.2410127328 | CA12: 0.2470380511 | CB12: 0.2532140024 | CC12: 0.2595443524 | CD12: 0.2660329612
B13: Power Output | E13: (kW) | F13: =((F5*2.3106)*F7*Q16)/11.81 ->  | K13: Propeller | N13: Kaplan | O13: 6 | Q13: Gault Green Energy | AQ13: Project Type | AU13: =Cost!AV9 -> 0 | AV13: =AV12+1 -> 12 | AW13: =SUM($BA$35:$BM$35) ->  | AX13: =AVERAGE(BA35:BL35) ->  | AY13: Power Sales Income | BA13: =BA12*$AU$10 ->  | BB13: =BB12*$AU$10 -> 
B14: Annual Power Generation | E14: (kWh) | F14: =ROUND(F13*F12*24*365,-2) ->  | K14: Crossflow | N14: Pelton | AV14: 13 | AW14: =SUM($BA$35:$BN$35) ->  | AX14: =AVERAGE(BA35:BM35) ->  | AY14: REC Value | BA14: =IF(F20="yes",AU25,0) -> 0 | BB14: =BA14+(BA14*$AU$26) -> 0 | BC14: =BB14+(BB14*$AU$26) -> 0 | BD14: 0 | BE14: 0 | BF14: 0 | BG14: 0 | BH14: 0 | BI14: 0 | BJ14: 0 | BK14: 0 | BL14: 0 | BM14: 0 | BN14: 0 | BO14: 0 | BP14: 0 | BQ14: 0 | BR14: 0 | BS14: 0 | BT14: 0 | BU14: 0 | BV14: 0 | BW14: 0 | BX14: 0 | BY14: 0 | BZ14: 0 | CA14: 0 | CB14: 0 | CC14: 0 | CD14: 0
B15: Financial Analysis | E15: Units | K15: Minimum Partial Flow | P15: % | Q15: =IF(F8="Automatic", VLOOKUP(F9,O22:P28,2,FALSE),VLOOKUP(F10,O22:P28,2,FALSE)) ->  | AP15: Financial Parameters | AV15: 14 | AW15: =SUM($BA$35:$BO$35) ->  | AX15: =AVERAGE(BA35:BN35) ->  | AY15: REC Income | BA15: =BA14*$AU$20 ->  | BB15: =BB14*$AU$20 -> 
B16: Cost Guideline | E16: ($/kW) | F16: 12000 | K16: Turbine Efficiency at Max Operating Point | P16: % | Q16: =IF(F9="Automatic", VLOOKUP(F10,O22:Q28,3,FALSE),VLOOKUP(F11,O22:Q28,3,FALSE)) ->  | AV16: =AV15+1 -> 15 | AW16: =SUM($BA$35:$BP$35) ->  | AX16: =AVERAGE(BA35:BO35) -> 
B17: Estimated Initial Capital Investment | E17: ($) | F17: =ROUND(F16*F13,-2) ->  | AV17: 16 | AW17: =SUM($BA$35:$BQ$35) ->  | AX17: =AVERAGE(BA35:BP35) -> 
B18: Estimated Annual O&M | E18: ($/yr) | F18: 10000 | K18: Power | L18: 0.6 | AQ18: Project Start-up Year | AT18: yr | AU18: 2014 | AV18: 17 | AW18: =SUM($BA$35:$BR$35) ->  | AX18: =AVERAGE(BA35:BQ35) ->  | AY18: Estimated Annual Income | BA18: =BA15+BA13 ->  | BB18: =BB15+BB13 ->  | BC18: =BC15+BC13 ->  | BD18: =BD15+BD13 -> 
B19: Energy Rate | E19: ($/kWh) | F19: 0.14 | AQ19: Peak Capacity | AT19: kw | AU19: =F13 ->  | AV19: 18 | AW19: =SUM($BA$35:$BS$35) ->  | AX19: =AVERAGE(BA35:BR35) -> 
B20: REC Availability | F20: no | L20: yes | R20: 1 | S20: 0.95 | T20: 0.9 | U20: 0.85 | V20: 0.8 | W20: 0.75 | X20: 0.7 | Y20: 0.65 | Z20: 0.6 | AA20: 0.55 | AB20: 0.5 | AC20: 0.45 | AD20: 0.4 | AE20: 0.35 | AF20: 0.3 | AG20: 0.25 | AH20: 0.2 | AI20: 0.15 | AJ20: 0.1 | AK20: 0.05 | AL20: 0 | AM20: % Duration | AQ20: Estimated Annual Energy Production | AT20: kWh | AU20: =AU10 ->  | AV20: 19 | AW20: =SUM($BA$35:$BT$35) ->  | AX20: =AVERAGE(BA35:BS35) -> 
B21: Financing Term | E21: (yr) | F21: 20 | L21: no | P21: Partial Flow % | Q21: Efficiency at max operating point | R21: 0 | S21: 0.05 | T21: 0.1 | U21: 0.15 | V21: 0.2 | W21: 0.25 | X21: 0.3 | Y21: 0.35 | Z21: 0.4 | AA21: 0.45 | AB21: 0.5 | AC21: 0.55 | AD21: 0.6 | AE21: 0.65 | AF21: 0.7 | AG21: 0.75 | AH21: 0.8 | AI21: 0.85 | AJ21: 0.9 | AK21: 0.95 | AL21: 1 | AM21: % Gate Setting | AQ21: Initial Avoided Cost of Energy | AT21: $/kWh | AU21: 0.13 | AV21: 20 | AW21: =SUM($BA$35:$BU$35) ->  | AX21: =AVERAGE(BA35:BT35) ->  | AY21: Annual Expenses
B22: Financing Rate | E22: (%) | F22: 0.06 | O22: Propeller | P22: 0.5 | Q22: =AL22 -> 0.91 | R22: 0 | S22: 0 | T22: 0 | U22: 0 | V22: 0 | W22: 0 | X22: 0 | Y22: 0 | Z22: 0 | AA22: 0 | AB22: 0 | AC22: 0.18 | AD22: 0.32 | AE22: 0.45 | AF22: 0.55 | AG22: 0.63 | AH22: 0.7 | AI22: 0.78 | AJ22: 0.82 | AK22: 0.88 | AL22: 0.91 | AQ22: Initial ISO Energy Value | AT22: $/kWh | AU22: 0 | AV22: 21 | AW22: =SUM($BA$35:$BV$35) ->  | AX22: =AVERAGE(BA35:BU35) -> 
B23: Project Financial and Environmental Benefits | E23: Units | O23: Kaplan | P23: 0.25 | Q23: 0.89 | R23: 0 | S23: 0 | T23: 0 | U23: 0 | V23: 0 | W23: 0 | X23: 0.3533333333 | Y23: 0.564 | Z23: 0.75 | AA23: 0.8433333333 | AB23: 0.8906666667 | AC23: 0.91 | AD23: 0.9126666667 | AE23: 0.9253333333 | AF23: 0.93 | AG23: 0.92 | AH23: 0.9146666667 | AI23: 0.91 | AJ23: 0.9073333333 | AK23: 0.9 | AL23: 0.89 | AQ23: Assumed Annual Power Rate Escalator | AT23: % | AU23: 0.025 | AV23: =AV22+1 -> 22 | AW23: =SUM($BA$35:$BW$35) ->  | AX23: =AVERAGE(BA35:BV35) ->  | AY23: O&M | BA23: =F18 -> 10000 | BB23: =BA23+(BA23*$AU$34) -> 10350 | BC23: =BB23+(BB23*$AU$34) -> 10712.25 | BD23: 11087.17875 | BE23: 11475.23001 | BF23: 11876.86306 | BG23: 12292.55326 | BH23: 12722.79263 | BI23: 13168.09037 | BJ23: 13628.97353 | BK23: 14105.98761 | BL23: 14599.69717 | BM23: 15110.68657 | BN23: 15639.5606 | BO23: 16186.94522 | BP23: 16753.48831 | BQ23: 17339.8604 | BR23: 17946.75551 | BS23: 18574.89196 | BT23: 19225.01317 | BU23: 19897.88863 | BV23: 20594.31474 | BW23: 21315.11575 | BX23: 22061.1448 | BY23: 22833.28487 | BZ23: 23632.44984 | CA23: 24459.58559 | CB23: 25315.67108 | CC23: 26201.71957 | CD23: 27118.77976
B24: Average Annual Project Benefit Over Finance Period | E24: ($) | F24: =ROUND(VLOOKUP(F21,AV2:AX31,3),-2) ->  | O24: Francis | P24: 0.4 | Q24: 0.88 | R24: 0 | S24: 0 | T24: 0 | U24: 0 | V24: 0 | W24: 0 | X24: 0 | Y24: 0 | Z24: 0 | AA24: 0.32 | AB24: 0.5333333333 | AC24: 0.66 | AD24: 0.7433333333 | AE24: 0.8066666667 | AF24: 0.85 | AG24: 0.8933333333 | AH24: 0.91 | AI24: 0.92 | AJ24: 0.92 | AK24: 0.9066666667 | AL24: 0.88 | AV24: 23 | AW24: =SUM($BA$35:$BX$35) ->  | AX24: =AVERAGE(BA35:BW35) -> 
B25: Simple Payback Period | E25: (yr) | F25: =IF(F17/F24>0,F17/F24,"Negative Payback Period") ->  | O25: PAT | P25: 0.8 | Q25: 0.94 | R25: 0 | S25: 0 | T25: 0 | U25: 0 | V25: 0 | W25: 0 | X25: 0 | Y25: 0 | Z25: 0 | AA25: 0 | AB25: 0 | AC25: 0 | AD25: 0 | AE25: 0 | AF25: 0 | AG25: 0 | AH25: 0.9 | AI25: 0.91 | AJ25: 0.92 | AK25: 0.93 | AL25: 0.94 | AQ25: Initial REC Value | AT25: $/kWh | AU25: 0.03 | AV25: 24 | AW25: =SUM($BA$35:$BY$35) ->  | AX25: =AVERAGE(BA35:BX35) -> 
B26: Avoided Annual Carbon Dioxide Emissions | E26: (lb/yr) | F26: =ROUND(AT51,-2) ->  | O26: Crossflow | P26: 0.4 | Q26: 0.82 | R26: 0 | S26: 0 | T26: 0 | U26: 0 | V26: 0 | W26: 0 | X26: 0 | Y26: 0 | Z26: 0 | AA26: 0.46 | AB26: 0.74 | AC26: 0.78 | AD26: 0.8066666667 | AE26: 0.81 | AF26: 0.82 | AG26: 0.82 | AH26: 0.8233333333 | AI26: 0.83 | AJ26: 0.83 | AK26: 0.8266666667 | AL26: 0.82 | AQ26: REC Escalator | AT26: % | AU26: 0 | AV26: 25 | AW26: =SUM($BA$35:$BZ$35) ->  | AX26: =AVERAGE(BA35:BY35) -> 
B27: Avoided Annual Sulfur Dioxide Emissions | E27: (lb/yr) | F27: =ROUND(AT52,-2) ->  | O27: Pelton | P27: 0.4 | Q27: 0.86 | R27: 0 | S27: 0 | T27: 0 | U27: 0 | V27: 0 | W27: 0 | X27: 0 | Y27: 0 | Z27: 0 | AA27: 0.4333333333 | AB27: 0.7666666667 | AC27: 0.82 | AD27: 0.83 | AE27: 0.84 | AF27: 0.85 | AG27: 0.8666666667 | AH27: 0.8833333333 | AI27: 0.89 | AJ27: 0.88 | AK27: 0.87 | AL27: 0.86 | AV27: 26 | AW27: =SUM($BA$35:$CA$35) ->  | AX27: =AVERAGE(BA35:BZ35) -> 
B28: Avoided Annual Nitrogen Oxides Emissions | E28: (lb/yr) | F28: =ROUND(AT53,-2) ->  | O28: N/A | AQ28: Operations Cost | AU28: =W19 -> 0 | AV28: 27 | AW28: =SUM($BA$35:$CB$35) ->  | AX28: =AVERAGE(BA35:CA35) -> 
AQ29: Maintenance | AU29: 0 | AV29: 28 | AW29: =SUM($BA$35:$CC$35) ->  | AX29: =AVERAGE(BA35:CB35) -> 
AQ30: Administration | AU30: 0 | AV30: 29 | AW30: =SUM($BA$35:$CD$35) ->  | AX30: =AVERAGE(BA35:CC35) ->  | AY30: Estimated Total Expenses | BA30: =SUM(BA23:BA29) -> 10000 | BB30: =SUM(BB23:BB29) -> 10350 | BC30: =SUM(BC23:BC29) -> 10712.25 | BD30: =SUM(BD23:BD29) -> 11087.17875 | BE30: 11475.23001 | BF30: 11876.86306 | BG30: 12292.55326 | BH30: 12722.79263 | BI30: 13168.09037 | BJ30: 13628.97353 | BK30: 14105.98761 | BL30: 14599.69717 | BM30: 15110.68657 | BN30: 15639.5606 | BO30: 16186.94522 | BP30: 16753.48831 | BQ30: 17339.8604 | BR30: 17946.75551 | BS30: 18574.89196 | BT30: 19225.01317 | BU30: 19897.88863 | BV30: 20594.31474 | BW30: 21315.11575 | BX30: 22061.1448 | BY30: 22833.28487 | BZ30: 23632.44984 | CA30: 24459.58559 | CB30: 25315.67108 | CC30: 26201.71957 | CD30: 27118.77976
AQ31: Legal and Accounting | AU31: 0 | AV31: 30 | AW31: =SUM($BA$35:$CE$35) ->  | AX31: =AVERAGE(BA35:CD35) -> 
AQ32: Insurance | AU32: 0 | AV32: 31 | AY32: Financing
AQ33: Misc. | AU33: 0 | AV33: 32 | AY33: Income Before Loan and Interest Payment | BA33: =BA18-BA30 ->  | BB33: =BB18-BB30 ->  | BC33: =BC18-BC30 ->  | BD33: =BD18-BD30 -> 
AQ34: Cost Escalator | AT34: % | AU34: 0.035 | AV34: 33 | AY34: Uniform Monthly BTFP LOC Payment | BA34: =IF(BA9<=$AU$40,12*PMT($AU$39/12,$AU$40*12,$AU$38,0,0),0) ->  | BB34: =IF(BB9<=$AU$40,12*PMT($AU$39/12,$AU$40*12,$AU$38,0,0),0) ->  | BC34: =IF(BC9<=$AU$40,12*PMT($AU$39/12,$AU$40*12,$AU$38,0,0),0) ->  | BU34: 0 | BV34: 0 | BW34: 0 | BX34: 0 | BY34: 0 | BZ34: 0 | CA34: 0 | CB34: 0 | CC34: 0 | CD34: 0
AV35: 34 | AY35: Annual Benefit | AZ35: =IRR(BA38:BL38,0.1) ->  | BA35: =BA33+BA34 ->  | BB35: =BB33+BB34 -> 
AQ36: Initial Capital Investment | AU36: =F17 ->  | AV36: 35
AQ37: Grant Funding Value | AU37: 0 | AV37: 36
AQ38: Total Finance | AU38: =AU36-AU37 ->  | AV38: 37
AQ39: Assumed Finance Rate | AT39: % | AU39: =F22 -> 0.06 | AV39: 38
AQ40: Financing Term | AT40: yr | AU40: =F21 -> 20 | AV40: 39
AV41: 40
AQ42: Average Annual Project Benefit Over Finance Period | AU42: 127489 | AV42: 41
AQ43: Simple Payback Period | AT43: yr | AU43: =AU38/AU42 ->  | AV43: 42
AQ44: Internal Rate of Return Over Investment Period | AT44: % | AU44: =IRR(BA35:CD35) ->  | AV44: 43
AV45: 44
AV46: 45
AQ47: Carbon Dioxide | AS47: lb/kWh | AT47: 1.52 | AV47: 46
AQ48: Sulfur Dioxide | AS48: lb/kWh | AT48: 0.008 | AV48: 47
AQ49: Nitrogen Oxides | AS49: lb/kWh | AT49: 0.0049 | AV49: 48 | AW49: =2122.42*12 -> 25469.04
AV50: 49
AQ51: Avoided Annual Carbon Dioxide Emissions | AS51: lbs | AT51: =$AU$20*AT47 ->  | AV51: 50
AQ52: Avoided Annual Sulfur Dioxide Emissions | AS52: lbs | AT52: =$AU$20*AT48 -> 
AQ53: Avoided Annual Nitrogen Oxides Emissions | AS53: lbs | AT53: =$AU$20*AT49 -> 

Sheet Hydrology
A1: In-Conduit Hydropower Project Screening Tool
A2: Hydrology Data
B4: Flow Analysis | E4: Units | F4: Estimate | G4: Notes | R4: Manual
B5: Facility Type | F5: =Cover!F12 -> Water Supply | R5: Automatic
B6: Hydrology Type | F6: Manual | H6: User must input flow data into flow duration table below. See user manual for development of flow duration curve data. If Manual selected, default turbine design flow of 50% duration. If Automatic selected; user chooses turbine design flow.
B7: Auto Turbine Design Flow | E7: =Cover!$F$16 -> GPM | F7: =C27 -> 0
B8: Manual Turbine Design Flow | E8: =Cover!$F$16 -> GPM
B9: Final Turbine Design Flow | E9: =Cover!$F$16 -> GPM | F9: =IF(F6="Manual",F8,F7) -> 0
B12: Flow Duration Curve Data
B15: Flow Duration | C15: Flow | D15: Flow
B16: % | C16: =Cover!F16 -> GPM | D16: ft³/s
B17: 0 | D17: =IF(Cover!$F$16="ft³/s",C17,IF(Cover!$F$16="MGD",(C17/0.64632),C17/(60*7.48))) -> 0
B18: 0.05 | D18: =IF(Cover!$F$16="ft³/s",C18,IF(Cover!$F$16="MGD",(C18/0.64632),C18/(60*7.48))) -> 0
B19: 0.1 | D19: =IF(Cover!$F$16="ft³/s",C19,IF(Cover!$F$16="MGD",(C19/0.64632),C19/(60*7.48))) -> 0
B20: 0.15 | D20: =IF(Cover!$F$16="ft³/s",C20,IF(Cover!$F$16="MGD",(C20/0.64632),C20/(60*7.48))) -> 0
B21: 0.2 | D21: =IF(Cover!$F$16="ft³/s",C21,IF(Cover!$F$16="MGD",(C21/0.64632),C21/(60*7.48))) -> 0
B22: 0.25 | D22: =IF(Cover!$F$16="ft³/s",C22,IF(Cover!$F$16="MGD",(C22/0.64632),C22/(60*7.48))) -> 0
B23: 0.3 | D23: =IF(Cover!$F$16="ft³/s",C23,IF(Cover!$F$16="MGD",(C23/0.64632),C23/(60*7.48))) -> 0
B24: 0.35 | D24: =IF(Cover!$F$16="ft³/s",C24,IF(Cover!$F$16="MGD",(C24/0.64632),C24/(60*7.48))) -> 0
B25: 0.4 | D25: =IF(Cover!$F$16="ft³/s",C25,IF(Cover!$F$16="MGD",(C25/0.64632),C25/(60*7.48))) -> 0
B26: 0.45 | D26: =IF(Cover!$F$16="ft³/s",C26,IF(Cover!$F$16="MGD",(C26/0.64632),C26/(60*7.48))) -> 0
B27: 0.5 | D27: =IF(Cover!$F$16="ft³/s",C27,IF(Cover!$F$16="MGD",(C27/0.64632),C27/(60*7.48))) -> 0
B28: 0.55 | D28: =IF(Cover!$F$16="ft³/s",C28,IF(Cover!$F$16="MGD",(C28/0.64632),C28/(60*7.48))) -> 0
B29: 0.6 | D29: =IF(Cover!$F$16="ft³/s",C29,IF(Cover!$F$16="MGD",(C29/0.64632),C29/(60*7.48))) -> 0
B30: 0.65 | D30: =IF(Cover!$F$16="ft³/s",C30,IF(Cover!$F$16="MGD",(C30/0.64632),C30/(60*7.48))) -> 0
B31: 0.7 | D31: =IF(Cover!$F$16="ft³/s",C31,IF(Cover!$F$16="MGD",(C31/0.64632),C31/(60*7.48))) -> 0
B32: 0.75 | D32: =IF(Cover!$F$16="ft³/s",C32,IF(Cover!$F$16="MGD",(C32/0.64632),C32/(60*7.48))) -> 0
B33: 0.8 | D33: =IF(Cover!$F$16="ft³/s",C33,IF(Cover!$F$16="MGD",(C33/0.64632),C33/(60*7.48))) -> 0
B34: 0.85 | D34: =IF(Cover!$F$16="ft³/s",C34,IF(Cover!$F$16="MGD",(C34/0.64632),C34/(60*7.48))) -> 0
B35: 0.9 | D35: =IF(Cover!$F$16="ft³/s",C35,IF(Cover!$F$16="MGD",(C35/0.64632),C35/(60*7.48))) -> 0
B36: 0.95 | D36: =IF(Cover!$F$16="ft³/s",C36,IF(Cover!$F$16="MGD",(C36/0.64632),C36/(60*7.48))) -> 0
B37: 1 | D37: =IF(Cover!$F$16="ft³/s",C37,IF(Cover!$F$16="MGD",(C37/0.64632),C37/(60*7.48))) -> 0

Sheet Equipment
A1: In-Conduit Hydropower Project Screening Tool
A2: Equipment Data
B4: Small Hydro Turbine Characteristics | F4: Units | G4: Estimate | H4: Notes/Range
B5: Head | F5: PSI
B6: Turbine Flow (Max) | F6: (ft³/s) | G6: =IF(Cover!F16="ft³/s",Hydrology!F9,IF(Cover!F16="MGD",(Hydrology!F9*1.547223836),(Hydrology!F9)/(7.48*60))) -> 0 | H6: If Automatic, turbine type will be automatically selected based on site characteristics. If Manual, user will specify turbine type. | O6: Head
B7: Turbine Flow (Min) | F7: (ft³/s) | G7: =G6*IF(G10="Propeller",Q22,IF(G10="Kaplan",Q23,IF(G10="Francis",Q24,IF(G10="PAT",Q25,IF(G10="Crossflow",Q26,IF(G10="Pelton",Q27,N/A)))))) -> 0 | O7: Automatic
B8: Turbine Selection | G8: Automatic | O8: Manual
B9: Automatic Turbine Type Selection | G9: N/A
B10: Manual Turbine Type Selection | G10: Propeller
B11: Turbine Type | G11: =IF(G8="manual",G10,G9) -> N/A | L11: Good | M11: Better | P11: Max Head | Q11: Min Head
B12: Turbine Efficiency at Max Operating Point | F12: (%) | G12: =IF(G9="Automatic", VLOOKUP(G10,P22:R28,3,FALSE),VLOOKUP(G11,P22:R28,3,FALSE)) ->  | L12: PAT | M12: Kaplan | O12: PAT | P12: 30 | Q12: 150 | R12: Canyon
L13: Propeller | O13: Kaplan | P13: 6 | R13: Gault Green Energy
L14: Crossflow | O14: Pelton
B16: Percent Duration Flow | C16: Turbine Efficiency
B17: 0 | C17: =VLOOKUP($G$11,$P$22:$AM$28,24,FALSE) -> 
B18: 5 | C18: =VLOOKUP($G$11,$P$22:$AM$28,23,FALSE) -> 
B19: 10 | C19: =VLOOKUP($G$11,$P$22:$AM$28,22,FALSE) -> 
B20: 15 | C20: =VLOOKUP($G$11,$P$22:$AM$28,21,FALSE) ->  | S20: 1 | T20: 0.95 | U20: 0.9 | V20: 0.85 | W20: 0.8 | X20: 0.75 | Y20: 0.7 | Z20: 0.65 | AA20: 0.6 | AB20: 0.55 | AC20: 0.5 | AD20: 0.45 | AE20: 0.4 | AF20: 0.35 | AG20: 0.3 | AH20: 0.25 | AI20: 0.2 | AJ20: 0.15 | AK20: 0.1 | AL20: 0.05 | AM20: 0 | AN20: % Duration
B21: 20 | C21: =VLOOKUP($G$11,$P$22:$AM$28,20,FALSE) ->  | Q21: Partial Flow % | R21: Efficiency at max operating point | S21: 0 | T21: 0.05 | U21: 0.1 | V21: 0.15 | W21: 0.2 | X21: 0.25 | Y21: 0.3 | Z21: 0.35 | AA21: 0.4 | AB21: 0.45 | AC21: 0.5 | AD21: 0.55 | AE21: 0.6 | AF21: 0.65 | AG21: 0.7 | AH21: 0.75 | AI21: 0.8 | AJ21: 0.85 | AK21: 0.9 | AL21: 0.95 | AM21: 1 | AN21: % Gate Setting
B22: 25 | C22: =VLOOKUP($G$11,$P$22:$AM$28,19,FALSE) ->  | P22: Propeller | Q22: 0.5 | R22: =AM22 -> 0.91 | S22: 0 | T22: 0 | U22: 0 | V22: 0 | W22: 0 | X22: 0 | Y22: 0 | Z22: 0 | AA22: 0 | AB22: 0 | AC22: 0 | AD22: 0.18 | AE22: 0.32 | AF22: 0.45 | AG22: 0.55 | AH22: 0.63 | AI22: 0.7 | AJ22: 0.78 | AK22: 0.82 | AL22: 0.88 | AM22: 0.91
B23: 30 | C23: =VLOOKUP($G$11,$P$22:$AM$28,18,FALSE) ->  | P23: Kaplan | Q23: 0.25 | R23: 0.89 | S23: 0 | T23: 0 | U23: 0 | V23: 0 | W23: 0 | X23: 0 | Y23: 0.3533333333 | Z23: 0.564 | AA23: 0.75 | AB23: 0.8433333333 | AC23: 0.8906666667 | AD23: 0.91 | AE23: 0.9126666667 | AF23: 0.9253333333 | AG23: 0.93 | AH23: 0.92 | AI23: 0.9146666667 | AJ23: 0.91 | AK23: 0.9073333333 | AL23: 0.9 | AM23: 0.89
B24: 35 | C24: =VLOOKUP($G$11,$P$22:$AM$28,17,FALSE) ->  | P24: Francis | Q24: 0.4 | R24: 0.88 | S24: 0 | T24: 0 | U24: 0 | V24: 0 | W24: 0 | X24: 0 | Y24: 0 | Z24: 0 | AA24: 0 | AB24: 0.32 | AC24: 0.5333333333 | AD24: 0.66 | AE24: 0.7433333333 | AF24: 0.8066666667 | AG24: 0.85 | AH24: 0.8933333333 | AI24: 0.91 | AJ24: 0.92 | AK24: 0.92 | AL24: 0.9066666667 | AM24: 0.88
B25: 40 | C25: =VLOOKUP($G$11,$P$22:$AM$28,16,FALSE) ->  | P25: PAT | Q25: 0.8 | R25: 0.94 | S25: 0 | T25: 0 | U25: 0 | V25: 0 | W25: 0 | X25: 0 | Y25: 0 | Z25: 0 | AA25: 0 | AB25: 0 | AC25: 0 | AD25: 0 | AE25: 0 | AF25: 0 | AG25: 0 | AH25: 0 | AI25: 0.9 | AJ25: 0.91 | AK25: 0.92 | AL25: 0.93 | AM25: 0.94
B26: 45 | C26: =VLOOKUP($G$11,$P$22:$AM$28,15,FALSE) ->  | P26: Crossflow | Q26: 0.4 | R26: 0.82 | S26: 0 | T26: 0 | U26: 0 | V26: 0 | W26: 0 | X26: 0 | Y26: 0 | Z26: 0 | AA26: 0 | AB26: 0.46 | AC26: 0.74 | AD26: 0.78 | AE26: 0.8066666667 | AF26: 0.81 | AG26: 0.82 | AH26: 0.82 | AI26: 0.8233333333 | AJ26: 0.83 | AK26: 0.83 | AL26: 0.8266666667 | AM26: 0.82
B27: 50 | C27: =VLOOKUP($G$11,$P$22:$AM$28,14,FALSE) ->  | P27: Pelton | Q27: 0.4 | R27: 0.86 | S27: 0 | T27: 0 | U27: 0 | V27: 0 | W27: 0 | X27: 0 | Y27: 0 | Z27: 0 | AA27: 0 | AB27: 0.4333333333 | AC27: 0.7666666667 | AD27: 0.82 | AE27: 0.83 | AF27: 0.84 | AG27: 0.85 | AH27: 0.8666666667 | AI27: 0.8833333333 | AJ27: 0.89 | AK27: 0.88 | AL27: 0.87 | AM27: 0.86
B28: 55 | C28: =VLOOKUP($G$11,$P$22:$AM$28,13,FALSE) ->  | P28: Hydrokinetic
B29: 60 | C29: =VLOOKUP($G$11,$P$22:$AM$28,12,FALSE) -> 
B30: 65 | C30: =VLOOKUP($G$11,$P$22:$AM$28,11,FALSE) -> 
B31: 70 | C31: =VLOOKUP($G$11,$P$22:$AM$28,10,FALSE) -> 
B32: 75 | C32: =VLOOKUP($G$11,$P$22:$AM$28,9,FALSE) -> 
B33: 80 | C33: =VLOOKUP($G$11,$P$22:$AM$28,8,FALSE) -> 
B34: 85 | C34: =VLOOKUP($G$11,$P$22:$AM$28,7,FALSE) -> 
B35: 90 | C35: =VLOOKUP($G$11,$P$22:$AM$28,6,FALSE) -> 
B36: 95 | C36: =VLOOKUP($G$11,$P$22:$AM$28,5,FALSE) -> 
B37: 100 | C37: =VLOOKUP($G$11,$P$22:$AM$28,4,FALSE) -> 

Sheet Energy Production
A1: In-Conduit Hydropower Project Screening Tool
A2: Energy Production
B4: Site Conditions | E4: Units | F4: Estimate | G4: Notes
B5: Project Name | F5: =Cover!F10 -> 0
B6: Project Location | F6: =Cover!F11 -> 0
B8: Head | E8: (ft) | F8: =(Equipment!G5*2.3106) -> 0
B10: Turbine Type | F10: =Equipment!G11 -> N/A
B12: Turbine Flow (Max) | E12: (ft³/s) | F12: =Equipment!G6 -> 0
B13: Turbine Flow (Min) | E13: (ft³/s) | F13: =Equipment!G7 -> 0
B15: Turbine Efficiency at Max Operating Point | E15: (%) | F15: =IF(F10="Propeller",Equipment!R22,IF(F10="Kaplan",Equipment!R23,IF(F10="Francis",Equipment!R24,IF(F10="PAT",Equipment!R25,IF(F10="Crossflow",Equipment!R26,IF(F10="Pelton",Equipment!R27,"N/A")))))) -> N/A
B16: Generator Efficiency | E16: (%) | F16: 0.95 | G16: 95% to 98%
B17: Annual Run Time | E17: (%) | F17: 0.95 | G17: 93% to 98%
B19: Peak Power | E19: (kW) | F19: =(F8*F15*Generator_Efficiency*F12)/11.81 -> 
B20: Average Annual Energy | E20: (kWh) | F20: =SUM(H26:H46) -> 
B22: Estimated Average Annual Energy Generation
B25: Percent Duration | C25: Flow (cfs) | D25: Generation Flow (ft³/s) | E25: Percent Gate | F25: Turbine Efficiency (%) | G25: Power (kW) | H25: Energy (kWh)
B26: 0 | C26: =Hydrology!D17 -> 0 | D26: =IF(C26>=$F$12,$F$12,C26) -> 0 | E26: =D26/$F$12 ->  | F26: =IF($F$10="Propeller",HLOOKUP(E26,Equipment!$S$21:$AM$27,2),IF($F$10="Kaplan",HLOOKUP(E26,Equipment!$S$21:$AM$27,3),IF($F$10="Francis",HLOOKUP(E26,Equipment!$S$21:$AM$27,4),IF($F$10="PAT",HLOOKUP(E26,Equipment!$S$21:$AM$27,5),IF($F$10="Crossflow",HLOOKUP(E26,Equipment!$S$21:$AM$27,5),IF($F$10="Pelton",HLOOKUP(E26,Equipment!$S$21:$AM$27,6),"N/A")))))) -> N/A | G26: =D26*F26*$F$16*$F$17*$F$8/11.81 ->  | H26: =ROUND(8765.1*G26*(1/20),-2) -> 
B27: 0.05 | C27: =Hydrology!D18 -> 0 | D27: =IF(C27>=$F$12,$F$12,C27) -> 0 | E27: =D27/$F$12 ->  | F27: =IF($F$10="Propeller",HLOOKUP(E27,Equipment!$S$21:$AM$27,2),IF($F$10="Kaplan",HLOOKUP(E27,Equipment!$S$21:$AM$27,3),IF($F$10="Francis",HLOOKUP(E27,Equipment!$S$21:$AM$27,4),IF($F$10="PAT",HLOOKUP(E27,Equipment!$S$21:$AM$27,5),IF($F$10="Crossflow",HLOOKUP(E27,Equipment!$S$21:$AM$27,5),IF($F$10="Pelton",HLOOKUP(E27,Equipment!$S$21:$AM$27,6),"N/A")))))) -> N/A | H27: =ROUND(8765.1*G27*(1/20),-2) -> 
B28: 0.1 | C28: =Hydrology!D19 -> 0 | D28: 0 | F28: =IF($F$10="Propeller",HLOOKUP(E28,Equipment!$S$21:$AM$27,2),IF($F$10="Kaplan",HLOOKUP(E28,Equipment!$S$21:$AM$27,3),IF($F$10="Francis",HLOOKUP(E28,Equipment!$S$21:$AM$27,4),IF($F$10="PAT",HLOOKUP(E28,Equipment!$S$21:$AM$27,5),IF($F$10="Crossflow",HLOOKUP(E28,Equipment!$S$21:$AM$27,5),IF($F$10="Pelton",HLOOKUP(E28,Equipment!$S$21:$AM$27,6),"N/A")))))) -> N/A
B29: 0.15 | C29: =Hydrology!D20 -> 0 | D29: 0 | F29: =IF($F$10="Propeller",HLOOKUP(E29,Equipment!$S$21:$AM$27,2),IF($F$10="Kaplan",HLOOKUP(E29,Equipment!$S$21:$AM$27,3),IF($F$10="Francis",HLOOKUP(E29,Equipment!$S$21:$AM$27,4),IF($F$10="PAT",HLOOKUP(E29,Equipment!$S$21:$AM$27,5),IF($F$10="Crossflow",HLOOKUP(E29,Equipment!$S$21:$AM$27,5),IF($F$10="Pelton",HLOOKUP(E29,Equipment!$S$21:$AM$27,6),"N/A")))))) -> N/A
B30: 0.2 | C30: =Hydrology!D21 -> 0 | D30: 0 | F30: =IF($F$10="Propeller",HLOOKUP(E30,Equipment!$S$21:$AM$27,2),IF($F$10="Kaplan",HLOOKUP(E30,Equipment!$S$21:$AM$27,3),IF($F$10="Francis",HLOOKUP(E30,Equipment!$S$21:$AM$27,4),IF($F$10="PAT",HLOOKUP(E30,Equipment!$S$21:$AM$27,5),IF($F$10="Crossflow",HLOOKUP(E30,Equipment!$S$21:$AM$27,5),IF($F$10="Pelton",HLOOKUP(E30,Equipment!$S$21:$AM$27,6),"N/A")))))) -> N/A
B31: 0.25 | C31: =Hydrology!D22 -> 0 | D31: 0 | F31: =IF($F$10="Propeller",HLOOKUP(E31,Equipment!$S$21:$AM$27,2),IF($F$10="Kaplan",HLOOKUP(E31,Equipment!$S$21:$AM$27,3),IF($F$10="Francis",HLOOKUP(E31,Equipment!$S$21:$AM$27,4),IF($F$10="PAT",HLOOKUP(E31,Equipment!$S$21:$AM$27,5),IF($F$10="Crossflow",HLOOKUP(E31,Equipment!$S$21:$AM$27,5),IF($F$10="Pelton",HLOOKUP(E31,Equipment!$S$21:$AM$27,6),"N/A")))))) -> N/A
B32: 0.3 | C32: =Hydrology!D23 -> 0 | D32: 0 | F32: =IF($F$10="Propeller",HLOOKUP(E32,Equipment!$S$21:$AM$27,2),IF($F$10="Kaplan",HLOOKUP(E32,Equipment!$S$21:$AM$27,3),IF($F$10="Francis",HLOOKUP(E32,Equipment!$S$21:$AM$27,4),IF($F$10="PAT",HLOOKUP(E32,Equipment!$S$21:$AM$27,5),IF($F$10="Crossflow",HLOOKUP(E32,Equipment!$S$21:$AM$27,5),IF($F$10="Pelton",HLOOKUP(E32,Equipment!$S$21:$AM$27,6),"N/A")))))) -> N/A
B33: 0.35 | C33: =Hydrology!D24 -> 0 | D33: 0 | F33: =IF($F$10="Propeller",HLOOKUP(E33,Equipment!$S$21:$AM$27,2),IF($F$10="Kaplan",HLOOKUP(E33,Equipment!$S$21:$AM$27,3),IF($F$10="Francis",HLOOKUP(E33,Equipment!$S$21:$AM$27,4),IF($F$10="PAT",HLOOKUP(E33,Equipment!$S$21:$AM$27,5),IF($F$10="Crossflow",HLOOKUP(E33,Equipment!$S$21:$AM$27,5),IF($F$10="Pelton",HLOOKUP(E33,Equipment!$S$21:$AM$27,6),"N/A")))))) -> N/A
B34: 0.4 | C34: =Hydrology!D25 -> 0 | D34: 0 | F34: =IF($F$10="Propeller",HLOOKUP(E34,Equipment!$S$21:$AM$27,2),IF($F$10="Kaplan",HLOOKUP(E34,Equipment!$S$21:$AM$27,3),IF($F$10="Francis",HLOOKUP(E34,Equipment!$S$21:$AM$27,4),IF($F$10="PAT",HLOOKUP(E34,Equipment!$S$21:$AM$27,5),IF($F$10="Crossflow",HLOOKUP(E34,Equipment!$S$21:$AM$27,5),IF($F$10="Pelton",HLOOKUP(E34,Equipment!$S$21:$AM$27,6),"N/A")))))) -> N/A
B35: 0.45 | C35: =Hydrology!D26 -> 0 | D35: 0 | F35: =IF($F$10="Propeller",HLOOKUP(E35,Equipment!$S$21:$AM$27,2),IF($F$10="Kaplan",HLOOKUP(E35,Equipment!$S$21:$AM$27,3),IF($F$10="Francis",HLOOKUP(E35,Equipment!$S$21:$AM$27,4),IF($F$10="PAT",HLOOKUP(E35,Equipment!$S$21:$AM$27,5),IF($F$10="Crossflow",HLOOKUP(E35,Equipment!$S$21:$AM$27,5),IF($F$10="Pelton",HLOOKUP(E35,Equipment!$S$21:$AM$27,6),"N/A")))))) -> N/A
B36: 0.5 | C36: =Hydrology!D27 -> 0 | D36: 0 | F36: =IF($F$10="Propeller",HLOOKUP(E36,Equipment!$S$21:$AM$27,2),IF($F$10="Kaplan",HLOOKUP(E36,Equipment!$S$21:$AM$27,3),IF($F$10="Francis",HLOOKUP(E36,Equipment!$S$21:$AM$27,4),IF($F$10="PAT",HLOOKUP(E36,Equipment!$S$21:$AM$27,5),IF($F$10="Crossflow",HLOOKUP(E36,Equipment!$S$21:$AM$27,5),IF($F$10="Pelton",HLOOKUP(E36,Equipment!$S$21:$AM$27,6),"N/A")))))) -> N/A
B37: 0.55 | C37: =Hydrology!D28 -> 0 | D37: 0 | F37: =IF($F$10="Propeller",HLOOKUP(E37,Equipment!$S$21:$AM$27,2),IF($F$10="Kaplan",HLOOKUP(E37,Equipment!$S$21:$AM$27,3),IF($F$10="Francis",HLOOKUP(E37,Equipment!$S$21:$AM$27,4),IF($F$10="PAT",HLOOKUP(E37,Equipment!$S$21:$AM$27,5),IF($F$10="Crossflow",HLOOKUP(E37,Equipment!$S$21:$AM$27,5),IF($F$10="Pelton",HLOOKUP(E37,Equipment!$S$21:$AM$27,6),"N/A")))))) -> N/A
B38: 0.6 | C38: =Hydrology!D29 -> 0 | D38: 0 | F38: =IF($F$10="Propeller",HLOOKUP(E38,Equipment!$S$21:$AM$27,2),IF($F$10="Kaplan",HLOOKUP(E38,Equipment!$S$21:$AM$27,3),IF($F$10="Francis",HLOOKUP(E38,Equipment!$S$21:$AM$27,4),IF($F$10="PAT",HLOOKUP(E38,Equipment!$S$21:$AM$27,5),IF($F$10="Crossflow",HLOOKUP(E38,Equipment!$S$21:$AM$27,5),IF($F$10="Pelton",HLOOKUP(E38,Equipment!$S$21:$AM$27,6),"N/A")))))) -> N/A
B39: 0.65 | C39: =Hydrology!D30 -> 0 | D39: 0 | F39: =IF($F$10="Propeller",HLOOKUP(E39,Equipment!$S$21:$AM$27,2),IF($F$10="Kaplan",HLOOKUP(E39,Equipment!$S$21:$AM$27,3),IF($F$10="Francis",HLOOKUP(E39,Equipment!$S$21:$AM$27,4),IF($F$10="PAT",HLOOKUP(E39,Equipment!$S$21:$AM$27,5),IF($F$10="Crossflow",HLOOKUP(E39,Equipment!$S$21:$AM$27,5),IF($F$10="Pelton",HLOOKUP(E39,Equipment!$S$21:$AM$27,6),"N/A")))))) -> N/A
B40: 0.7 | C40: =Hydrology!D31 -> 0 | D40: 0 | F40: =IF($F$10="Propeller",HLOOKUP(E40,Equipment!$S$21:$AM$27,2),IF($F$10="Kaplan",HLOOKUP(E40,Equipment!$S$21:$AM$27,3),IF($F$10="Francis",HLOOKUP(E40,Equipment!$S$21:$AM$27,4),IF($F$10="PAT",HLOOKUP(E40,Equipment!$S$21:$AM$27,5),IF($F$10="Crossflow",HLOOKUP(E40,Equipment!$S$21:$AM$27,5),IF($F$10="Pelton",HLOOKUP(E40,Equipment!$S$21:$AM$27,6),"N/A")))))) -> N/A
B41: 0.75 | C41: =Hydrology!D32 -> 0 | D41: 0 | F41: =IF($F$10="Propeller",HLOOKUP(E41,Equipment!$S$21:$AM$27,2),IF($F$10="Kaplan",HLOOKUP(E41,Equipment!$S$21:$AM$27,3),IF($F$10="Francis",HLOOKUP(E41,Equipment!$S$21:$AM$27,4),IF($F$10="PAT",HLOOKUP(E41,Equipment!$S$21:$AM$27,5),IF($F$10="Crossflow",HLOOKUP(E41,Equipment!$S$21:$AM$27,5),IF($F$10="Pelton",HLOOKUP(E41,Equipment!$S$21:$AM$27,6),"N/A")))))) -> N/A
B42: 0.8 | C42: =Hydrology!D33 -> 0 | D42: 0 | F42: =IF($F$10="Propeller",HLOOKUP(E42,Equipment!$S$21:$AM$27,2),IF($F$10="Kaplan",HLOOKUP(E42,Equipment!$S$21:$AM$27,3),IF($F$10="Francis",HLOOKUP(E42,Equipment!$S$21:$AM$27,4),IF($F$10="PAT",HLOOKUP(E42,Equipment!$S$21:$AM$27,5),IF($F$10="Crossflow",HLOOKUP(E42,Equipment!$S$21:$AM$27,5),IF($F$10="Pelton",HLOOKUP(E42,Equipment!$S$21:$AM$27,6),"N/A")))))) -> N/A
B43: 0.85 | C43: =Hydrology!D34 -> 0 | D43: 0 | F43: =IF($F$10="Propeller",HLOOKUP(E43,Equipment!$S$21:$AM$27,2),IF($F$10="Kaplan",HLOOKUP(E43,Equipment!$S$21:$AM$27,3),IF($F$10="Francis",HLOOKUP(E43,Equipment!$S$21:$AM$27,4),IF($F$10="PAT",HLOOKUP(E43,Equipment!$S$21:$AM$27,5),IF($F$10="Crossflow",HLOOKUP(E43,Equipment!$S$21:$AM$27,5),IF($F$10="Pelton",HLOOKUP(E43,Equipment!$S$21:$AM$27,6),"N/A")))))) -> N/A
B44: 0.9 | C44: =Hydrology!D35 -> 0 | D44: 0 | F44: =IF($F$10="Propeller",HLOOKUP(E44,Equipment!$S$21:$AM$27,2),IF($F$10="Kaplan",HLOOKUP(E44,Equipment!$S$21:$AM$27,3),IF($F$10="Francis",HLOOKUP(E44,Equipment!$S$21:$AM$27,4),IF($F$10="PAT",HLOOKUP(E44,Equipment!$S$21:$AM$27,5),IF($F$10="Crossflow",HLOOKUP(E44,Equipment!$S$21:$AM$27,5),IF($F$10="Pelton",HLOOKUP(E44,Equipment!$S$21:$AM$27,6),"N/A")))))) -> N/A
B45: 0.95 | C45: =Hydrology!D36 -> 0 | D45: 0 | F45: =IF($F$10="Propeller",HLOOKUP(E45,Equipment!$S$21:$AM$27,2),IF($F$10="Kaplan",HLOOKUP(E45,Equipment!$S$21:$AM$27,3),IF($F$10="Francis",HLOOKUP(E45,Equipment!$S$21:$AM$27,4),IF($F$10="PAT",HLOOKUP(E45,Equipment!$S$21:$AM$27,5),IF($F$10="Crossflow",HLOOKUP(E45,Equipment!$S$21:$AM$27,5),IF($F$10="Pelton",HLOOKUP(E45,Equipment!$S$21:$AM$27,6),"N/A")))))) -> N/A
B46: 1 | C46: =Hydrology!D37 -> 0 | D46: 0 | F46: =IF($F$10="Propeller",HLOOKUP(E46,Equipment!$S$21:$AM$27,2),IF($F$10="Kaplan",HLOOKUP(E46,Equipment!$S$21:$AM$27,3),IF($F$10="Francis",HLOOKUP(E46,Equipment!$S$21:$AM$27,4),IF($F$10="PAT",HLOOKUP(E46,Equipment!$S$21:$AM$27,5),IF($F$10="Crossflow",HLOOKUP(E46,Equipment!$S$21:$AM$27,5),IF($F$10="Pelton",HLOOKUP(E46,Equipment!$S$21:$AM$27,6),"N/A")))))) -> N/A

Sheet Cost
A1: In-Conduit Hydropower Project Screening Tool
A2: Cost Data
B4: Formula Costing Method | D4: Units | E4: Estimate | F4: Notes
B6: Cost Methodology | E6: Automatic | L6: Automatic
L7: Manual
B9: Automatic | D9: Units | F9: Notes
B11: Cost Guideline | D11: ($/kW) | E11: 12000
B12: Peak Power | D12: (kW) | E12: ='Energy Production'!F19 -> 
B13: Initial Capital Investment | D13: ($) | E13: =ROUND(E12*E11,-2) -> 
B14: Annual O&M | D14: ($) | E14: 10000
B18: Manual | D18: Units | F18: Notes
B20: Costs
B22: Contractor Mobilization / Demobilization
B23: Temporary Sediment and Erosion and Traffic Control | E23: 0
B24: Equipment | E24: 0
B25: Site Preparation | E25: 0
B26: Temporary Facilities | E26: 0
B27: Project Materials and Civil Construction (vault, bypass, valve, etc) | E27: 0
B28: Construction Dewatering & Groundwater Control | E28: 0
B29: Materials and Construction | E29: 0
B30: Electrical System and Controls | E30: 0
B31: Programming and Commissioning | E31: 0
B32: Provision of Hydroelectric Generating Equipment and Warranty | E32: 0
B33: Interconnection | E33: 0
B35: Engineering Design and Field Engineering | E35: 0
B36: Permitting | E36: 0
B37: Contingency Percentage | E37: 0.1 | F37: 10%-40%
B38: Contingency | E38: =ROUND(SUM(E22:E36)*E37,-2) -> 0
B40: Initial Capital Investment
B42: Total | E42: =ROUND(SUM(E22:E36)+E38,-2) -> 0
B44: Annual O&M
B46: Operations
B47: Maintenance
B48: Administration
B49: Legal and Accounting
B50: Insurance
B51: Misc.
B53: Total | E53: =SUM(E46:E51) -> 0

Sheet Financial
A1: In-Conduit Hydropower Project Screening Tool | J1: Proforma | AY1: 1 | AZ1: =BA1 ->  | BA1: =K19 ->  | BB1: Cumulative Annual Benefit
A2: Financial Evaluation | J2: Annum | K2: =F14 -> 2010 | L2: =K2+1 -> 2011 | M2: =L2+1 -> 2012 | N2: =M2+1 -> 2013 | O2: 2014 | P2: 2015 | Q2: 2016 | R2: 2017 | S2: 2018 | T2: 2019 | U2: 2020 | V2: 2021 | W2: 2022 | X2: 2023 | Y2: 2024 | Z2: 2025 | AA2: 2026 | AB2: 2027 | AC2: 2028 | AD2: =AC2+1 -> 2029 | AE2: 2030 | AF2: 2031 | AG2: 2032 | AH2: 2033 | AI2: 2034 | AJ2: 2035 | AK2: 2036 | AL2: 2037 | AM2: 2038 | AN2: 2039 | AO2: =AN2+1 -> 2040 | AP2: =AO2+1 -> 2041 | AQ2: =AP2+1 -> 2042 | AR2: =AQ2+1 -> 2043 | AS2: =AR2+1 -> 2044 | AT2: =AS2+1 -> 2045 | AU2: =AT2+1 -> 2046 | AV2: =AU2+1 -> 2047 | AW2: =AV2+1 -> 2048 | AX2: 2049 | AY2: 2 | AZ2: =AZ1+BA2 ->  | BA2: =L19 -> 
J3: Project Year | K3: 1 | L3: =K3+1 -> 2 | M3: =L3+1 -> 3 | N3: 4 | O3: 5 | P3: 6 | Q3: 7 | R3: 8 | S3: 9 | T3: 10 | U3: 11 | V3: 12 | W3: 13 | X3: 14 | Y3: 15 | Z3: 16 | AA3: 17 | AB3: 18 | AC3: 19 | AD3: 20 | AE3: 21 | AF3: 22 | AG3: 23 | AH3: 24 | AI3: 25 | AJ3: 26 | AK3: 27 | AL3: 28 | AM3: 29 | AN3: 30 | AO3: 31 | AP3: 32 | AQ3: 33 | AR3: 34 | AS3: 35 | AT3: 36 | AU3: 37 | AV3: 38 | AW3: 39 | AX3: 40 | AY3: 3 | AZ3: =AZ2+BA3 ->  | BA3: =M19 -> 
A4: Annual Energy Balance | E4: Units | G4: Notes | J4: Annual Income | AY4: 4 | BA4: =N19 -> 
B5: Project Name | F5: =Cover!F10 -> 0 | J5: ISO Energy Value (Wholesale) | K5: =F18 -> 0.04 | L5: =K5+(K5*$F$19) -> 0.0408 | M5: =L5+(L5*$F$19) -> 0.041616 | N5: 0.04244832 | O5: 0.0432972864 | P5: 0.04416323213 | Q5: 0.04504649677 | R5: 0.04594742671 | S5: 0.04686637524 | T5: 0.04780370274 | U5: 0.0487597768 | V5: 0.04973497234 | W5: 0.05072967178 | X5: 0.05174426522 | Y5: 0.05277915052 | Z5: 0.05383473353 | AA5: 0.0549114282 | AB5: 0.05600965677 | AC5: 0.0571298499 | AD5: 0.0582724469 | AE5: 0.05943789584 | AF5: 0.06062665376 | AG5: 0.06183918683 | AH5: 0.06307597057 | AI5: 0.06433748998 | AJ5: 0.06562423978 | AK5: 0.06693672457 | AL5: 0.06827545907 | AM5: 0.06964096825 | AN5: 0.07103378761 | AO5: =AN5+(AN5*$F$19) -> 0.07245446336 | AP5: =AO5+(AO5*$F$19) -> 0.07390355263 | AQ5: =AP5+(AP5*$F$19) -> 0.07538162368 | AR5: =AQ5+(AQ5*$F$19) -> 0.07688925616 | AS5: =AR5+(AR5*$F$19) -> 0.07842704128 | AT5: =AS5+(AS5*$F$19) -> 0.07999558211 | AU5: =AT5+(AT5*$F$19) -> 0.08159549375 | AV5: =AU5+(AU5*$F$19) -> 0.08322740362 | AW5: =AV5+(AV5*$F$19) -> 0.0848919517 | AX5: 0.08658979073 | AY5: =AY4+1 -> 5 | BA5: =O19 ->  | BE5: Full Conventional | BF5: ='Simplified Conventional Hydro'!$F$13 ->  | BG5: ='Simplified Conventional Hydro'!$F$14 -> 
B6: Project Location | F6: =Cover!F11 -> 0 | J6: Avoided Cost of Energy (Retail) | K6: =F17 -> 0.1 | L6: =K6+(K6*$F$19) -> 0.102 | M6: =L6+(L6*$F$19) -> 0.10404 | N6: 0.1061208 | O6: 0.108243216 | P6: 0.1104080803 | Q6: 0.1126162419 | R6: 0.1148685668 | S6: 0.1171659381 | T6: 0.1195092569 | U6: 0.121899442 | V6: 0.1243374308 | W6: 0.1268241795 | X6: 0.129360663 | Y6: 0.1319478763 | Z6: 0.1345868338 | AA6: 0.1372785705 | AB6: 0.1400241419 | AC6: 0.1428246248 | AD6: 0.1456811173 | AE6: 0.1485947396 | AF6: 0.1515666344 | AG6: 0.1545979671 | AH6: 0.1576899264 | AI6: 0.1608437249 | AJ6: 0.1640605994 | AK6: 0.1673418114 | AL6: 0.1706886477 | AM6: 0.1741024206 | AN6: 0.177584469 | AO6: 0.1811361584 | AP6: 0.1847588816 | AQ6: 0.1884540592 | AR6: 0.1922231404 | AS6: 0.1960676032 | AT6: 0.1999889553 | AU6: 0.2039887344 | AV6: 0.2080685091 | AW6: 0.2122298792 | AX6: 0.2164744768 | AY6: =AY5+1 -> 6 | BA6: =P19 ->  | BE6: Full Hydrokinetic | BF6: =#REF! ->  | BG6: =#REF! -> 
B7: Average Annual Energy | E7: (kWh) | F7: ='Energy Production'!F20 ->  | J7: Power Sales Income | K7: =IF($F$9="Wholesale",(K5*$F$7),K6*$F$7) ->  | AO7: =IF($F$9="Wholesale",(AO5*$F$7),AO6*$F$7) ->  | AY7: 7 | BA7: =Q19 ->  | BE7: Simplified Conventional | BF7: =#REF! ->  | BG7: =#REF! -> 
B8: Energy Use | F8: Onsite | J8: REC Value | K8: =F20 -> 0.02 | L8: =K8+(K8*$F$21) -> 0.0204 | M8: =L8+(L8*$F$21) -> 0.020808 | N8: 0.02122416 | O8: 0.0216486432 | P8: 0.02208161606 | Q8: 0.02252324839 | R8: 0.02297371335 | S8: 0.02343318762 | T8: 0.02390185137 | U8: 0.0243798884 | V8: 0.02486748617 | W8: 0.02536483589 | X8: 0.02587213261 | Y8: 0.02638957526 | Z8: 0.02691736677 | AA8: 0.0274557141 | AB8: 0.02800482838 | AC8: 0.02856492495 | AD8: 0.02913622345 | AE8: 0.02971894792 | AF8: 0.03031332688 | AG8: 0.03091959342 | AH8: 0.03153798528 | AI8: 0.03216874499 | AJ8: 0.03281211989 | AK8: 0.03346836229 | AL8: 0.03413772953 | AM8: 0.03482048412 | AN8: 0.03551689381 | AO8: =AN8+(AN8*$F$21) -> 0.03622723168 | AP8: =AO8+(AO8*$F$21) -> 0.03695177632 | AQ8: =AP8+(AP8*$F$21) -> 0.03769081184 | AR8: =AQ8+(AQ8*$F$21) -> 0.03844462808 | AS8: =AR8+(AR8*$F$21) -> 0.03921352064 | AT8: =AS8+(AS8*$F$21) -> 0.03999779105 | AU8: =AT8+(AT8*$F$21) -> 0.04079774687 | AV8: =AU8+(AU8*$F$21) -> 0.04161370181 | AW8: =AV8+(AV8*$F$21) -> 0.04244597585 | AX8: 0.04329489536 | AY8: 8 | BA8: =R19 ->  | BE8: Simplified Hydrokinetic | BF8: ='Energy Production'!$F$19 ->  | BG8: ='Energy Production'!$F$20 -> 
B9: Energy Type | F9: =IF(F8="Onsite", "Retail","Wholesale") -> Retail | J9: REC Income | K9: =K8*$F$7 ->  | AO9: =AO8*$F$7 ->  | AY9: 9 | BA9: =S19 ->  | BB9: =BA9+(BA9*$F$19) ->  | BY9: =BX9+(BX9*$F$19) ->  | EK9: =EJ9+(EJ9*$F$19) ->  | GW9: =GV9+(GV9*$F$19) ->  | JI9: =JH9+(JH9*$F$19) ->  | LU9: =LT9+(LT9*$F$19) ->  | OG9: =OF9+(OF9*$F$19) ->  | QS9: =QR9+(QR9*$F$19) ->  | TE9: =TD9+(TD9*$F$19) ->  | VQ9: =VP9+(VP9*$F$19) ->  | YC9: =YB9+(YB9*$F$19) ->  | AAO9: =AAN9+(AAN9*$F$19) ->  | ADA9: =ACZ9+(ACZ9*$F$19) ->  | AFM9: =AFL9+(AFL9*$F$19) ->  | AHY9: =AHX9+(AHX9*$F$19) ->  | AKK9: =AKJ9+(AKJ9*$F$19) ->  | AMW9: =AMV9+(AMV9*$F$19) ->  | API9: =APH9+(APH9*$F$19) ->  | ARU9: =ART9+(ART9*$F$19) ->  | AUG9: =AUF9+(AUF9*$F$19) ->  | AWS9: =AWR9+(AWR9*$F$19) ->  | AZE9: =AZD9+(AZD9*$F$19) ->  | BBQ9: =BBP9+(BBP9*$F$19) ->  | BEC9: =BEB9+(BEB9*$F$19) ->  | BGO9: =BGN9+(BGN9*$F$19) ->  | BJA9: =BIZ9+(BIZ9*$F$19) ->  | BLM9: =BLL9+(BLL9*$F$19) ->  | BNY9: =BNX9+(BNX9*$F$19) ->  | BQK9: =BQJ9+(BQJ9*$F$19) ->  | BSW9: =BSV9+(BSV9*$F$19) ->  | BVI9: =BVH9+(BVH9*$F$19) ->  | BXU9: =BXT9+(BXT9*$F$19) ->  | CAG9: =CAF9+(CAF9*$F$19) ->  | CCS9: =CCR9+(CCR9*$F$19) ->  | CFE9: =CFD9+(CFD9*$F$19) ->  | CHQ9: =CHP9+(CHP9*$F$19) ->  | CKC9: =CKB9+(CKB9*$F$19) ->  | CMO9: =CMN9+(CMN9*$F$19) ->  | CPA9: =COZ9+(COZ9*$F$19) ->  | CRM9: =CRL9+(CRL9*$F$19) ->  | CTY9: =CTX9+(CTX9*$F$19) ->  | CWK9: =CWJ9+(CWJ9*$F$19) ->  | CYW9: =CYV9+(CYV9*$F$19) ->  | DBI9: =DBH9+(DBH9*$F$19) ->  | DDU9: =DDT9+(DDT9*$F$19) ->  | DGG9: =DGF9+(DGF9*$F$19) ->  | DIS9: =DIR9+(DIR9*$F$19) ->  | DLE9: =DLD9+(DLD9*$F$19) ->  | DNQ9: =DNP9+(DNP9*$F$19) ->  | DQC9: =DQB9+(DQB9*$F$19) ->  | DSO9: =DSN9+(DSN9*$F$19) ->  | DVA9: =DUZ9+(DUZ9*$F$19) ->  | DXM9: =DXL9+(DXL9*$F$19) ->  | DZY9: =DZX9+(DZX9*$F$19) ->  | ECK9: =ECJ9+(ECJ9*$F$19) ->  | EEW9: =EEV9+(EEV9*$F$19) ->  | EHI9: =EHH9+(EHH9*$F$19) ->  | EJU9: =EJT9+(EJT9*$F$19) ->  | EMG9: =EMF9+(EMF9*$F$19) ->  | EOS9: =EOR9+(EOR9*$F$19) ->  | ERE9: =ERD9+(ERD9*$F$19) ->  | ETQ9: =ETP9+(ETP9*$F$19) ->  | EWC9: =EWB9+(EWB9*$F$19) ->  | EYO9: =EYN9+(EYN9*$F$19) ->  | FBA9: =FAZ9+(FAZ9*$F$19) ->  | FDM9: =FDL9+(FDL9*$F$19) ->  | FFY9: =FFX9+(FFX9*$F$19) ->  | FIK9: =FIJ9+(FIJ9*$F$19) ->  | FKW9: =FKV9+(FKV9*$F$19) ->  | FNI9: =FNH9+(FNH9*$F$19) ->  | FPU9: =FPT9+(FPT9*$F$19) ->  | FSG9: =FSF9+(FSF9*$F$19) ->  | FUS9: =FUR9+(FUR9*$F$19) ->  | FXE9: =FXD9+(FXD9*$F$19) ->  | FZQ9: =FZP9+(FZP9*$F$19) ->  | GCC9: =GCB9+(GCB9*$F$19) ->  | GEO9: =GEN9+(GEN9*$F$19) ->  | GHA9: =GGZ9+(GGZ9*$F$19) ->  | GJM9: =GJL9+(GJL9*$F$19) ->  | GLY9: =GLX9+(GLX9*$F$19) ->  | GOK9: =GOJ9+(GOJ9*$F$19) ->  | GQW9: =GQV9+(GQV9*$F$19) ->  | GTI9: =GTH9+(GTH9*$F$19) ->  | GVU9: =GVT9+(GVT9*$F$19) ->  | GYG9: =GYF9+(GYF9*$F$19) ->  | HAS9: =HAR9+(HAR9*$F$19) ->  | HDE9: =HDD9+(HDD9*$F$19) ->  | HFQ9: =HFP9+(HFP9*$F$19) ->  | HIC9: =HIB9+(HIB9*$F$19) ->  | HKO9: =HKN9+(HKN9*$F$19) ->  | HNA9: =HMZ9+(HMZ9*$F$19) ->  | HPM9: =HPL9+(HPL9*$F$19) ->  | HRY9: =HRX9+(HRX9*$F$19) ->  | HUK9: =HUJ9+(HUJ9*$F$19) ->  | HWW9: =HWV9+(HWV9*$F$19) ->  | HZI9: =HZH9+(HZH9*$F$19) ->  | IBU9: =IBT9+(IBT9*$F$19) ->  | IEG9: =IEF9+(IEF9*$F$19) ->  | IGS9: =IGR9+(IGR9*$F$19) ->  | IJE9: =IJD9+(IJD9*$F$19) ->  | ILQ9: =ILP9+(ILP9*$F$19) ->  | IOC9: =IOB9+(IOB9*$F$19) ->  | IQO9: =IQN9+(IQN9*$F$19) ->  | ITA9: =ISZ9+(ISZ9*$F$19) ->  | IVM9: =IVL9+(IVL9*$F$19) ->  | IXY9: =IXX9+(IXX9*$F$19) ->  | JAK9: =JAJ9+(JAJ9*$F$19) ->  | JCW9: =JCV9+(JCV9*$F$19) ->  | JFI9: =JFH9+(JFH9*$F$19) ->  | JHU9: =JHT9+(JHT9*$F$19) ->  | JKG9: =JKF9+(JKF9*$F$19) ->  | JMS9: =JMR9+(JMR9*$F$19) ->  | JPE9: =JPD9+(JPD9*$F$19) ->  | JRQ9: =JRP9+(JRP9*$F$19) ->  | JUC9: =JUB9+(JUB9*$F$19) ->  | JWO9: =JWN9+(JWN9*$F$19) ->  | JZA9: =JYZ9+(JYZ9*$F$19) ->  | KBM9: =KBL9+(KBL9*$F$19) ->  | KDY9: =KDX9+(KDX9*$F$19) ->  | KGK9: =KGJ9+(KGJ9*$F$19) ->  | KIW9: =KIV9+(KIV9*$F$19) ->  | KLI9: =KLH9+(KLH9*$F$19) ->  | KNU9: =KNT9+(KNT9*$F$19) ->  | KQG9: =KQF9+(KQF9*$F$19) ->  | KSS9: =KSR9+(KSR9*$F$19) ->  | KVE9: =KVD9+(KVD9*$F$19) ->  | KXQ9: =KXP9+(KXP9*$F$19) ->  | LAC9: =LAB9+(LAB9*$F$19) ->  | LCO9: =LCN9+(LCN9*$F$19) ->  | LFA9: =LEZ9+(LEZ9*$F$19) ->  | LHM9: =LHL9+(LHL9*$F$19) ->  | LJY9: =LJX9+(LJX9*$F$19) ->  | LMK9: =LMJ9+(LMJ9*$F$19) ->  | LOW9: =LOV9+(LOV9*$F$19) ->  | LRI9: =LRH9+(LRH9*$F$19) ->  | LTU9: =LTT9+(LTT9*$F$19) ->  | LWG9: =LWF9+(LWF9*$F$19) ->  | LYS9: =LYR9+(LYR9*$F$19) ->  | MBE9: =MBD9+(MBD9*$F$19) ->  | MDQ9: =MDP9+(MDP9*$F$19) ->  | MGC9: =MGB9+(MGB9*$F$19) ->  | MIO9: =MIN9+(MIN9*$F$19) ->  | MLA9: =MKZ9+(MKZ9*$F$19) ->  | MNM9: =MNL9+(MNL9*$F$19) ->  | MPY9: =MPX9+(MPX9*$F$19) ->  | MSK9: =MSJ9+(MSJ9*$F$19) ->  | MUW9: =MUV9+(MUV9*$F$19) ->  | MXI9: =MXH9+(MXH9*$F$19) ->  | MZU9: =MZT9+(MZT9*$F$19) ->  | NCG9: =NCF9+(NCF9*$F$19) ->  | NES9: =NER9+(NER9*$F$19) ->  | NHE9: =NHD9+(NHD9*$F$19) ->  | NJQ9: =NJP9+(NJP9*$F$19) ->  | NMC9: =NMB9+(NMB9*$F$19) ->  | NOO9: =NON9+(NON9*$F$19) ->  | NRA9: =NQZ9+(NQZ9*$F$19) ->  | NTM9: =NTL9+(NTL9*$F$19) ->  | NVY9: =NVX9+(NVX9*$F$19) ->  | NYK9: =NYJ9+(NYJ9*$F$19) ->  | OAW9: =OAV9+(OAV9*$F$19) ->  | ODI9: =ODH9+(ODH9*$F$19) ->  | OFU9: =OFT9+(OFT9*$F$19) ->  | OIG9: =OIF9+(OIF9*$F$19) ->  | OKS9: =OKR9+(OKR9*$F$19) ->  | ONE9: =OND9+(OND9*$F$19) ->  | OPQ9: =OPP9+(OPP9*$F$19) ->  | OSC9: =OSB9+(OSB9*$F$19) ->  | OUO9: =OUN9+(OUN9*$F$19) ->  | OXA9: =OWZ9+(OWZ9*$F$19) ->  | OZM9: =OZL9+(OZL9*$F$19) ->  | PBY9: =PBX9+(PBX9*$F$19) ->  | PEK9: =PEJ9+(PEJ9*$F$19) ->  | PGW9: =PGV9+(PGV9*$F$19) ->  | PJI9: =PJH9+(PJH9*$F$19) ->  | PLU9: =PLT9+(PLT9*$F$19) ->  | POG9: =POF9+(POF9*$F$19) ->  | PQS9: =PQR9+(PQR9*$F$19) ->  | PTE9: =PTD9+(PTD9*$F$19) ->  | PVQ9: =PVP9+(PVP9*$F$19) ->  | PYC9: =PYB9+(PYB9*$F$19) ->  | QAO9: =QAN9+(QAN9*$F$19) ->  | QDA9: =QCZ9+(QCZ9*$F$19) ->  | QFM9: =QFL9+(QFL9*$F$19) ->  | QHY9: =QHX9+(QHX9*$F$19) ->  | QKK9: =QKJ9+(QKJ9*$F$19) ->  | QMW9: =QMV9+(QMV9*$F$19) ->  | QPI9: =QPH9+(QPH9*$F$19) ->  | QRU9: =QRT9+(QRT9*$F$19) ->  | QUG9: =QUF9+(QUF9*$F$19) ->  | QWS9: =QWR9+(QWR9*$F$19) ->  | QZE9: =QZD9+(QZD9*$F$19) ->  | RBQ9: =RBP9+(RBP9*$F$19) ->  | REC9: =REB9+(REB9*$F$19) ->  | RGO9: =RGN9+(RGN9*$F$19) ->  | RJA9: =RIZ9+(RIZ9*$F$19) ->  | RLM9: =RLL9+(RLL9*$F$19) ->  | RNY9: =RNX9+(RNX9*$F$19) ->  | RQK9: =RQJ9+(RQJ9*$F$19) ->  | RSW9: =RSV9+(RSV9*$F$19) ->  | RVI9: =RVH9+(RVH9*$F$19) ->  | RXU9: =RXT9+(RXT9*$F$19) ->  | SAG9: =SAF9+(SAF9*$F$19) ->  | SCS9: =SCR9+(SCR9*$F$19) ->  | SFE9: =SFD9+(SFD9*$F$19) ->  | SHQ9: =SHP9+(SHP9*$F$19) ->  | SKC9: =SKB9+(SKB9*$F$19) ->  | SMO9: =SMN9+(SMN9*$F$19) ->  | SPA9: =SOZ9+(SOZ9*$F$19) ->  | SRM9: =SRL9+(SRL9*$F$19) ->  | STY9: =STX9+(STX9*$F$19) ->  | SWK9: =SWJ9+(SWJ9*$F$19) ->  | SYW9: =SYV9+(SYV9*$F$19) ->  | TBI9: =TBH9+(TBH9*$F$19) ->  | TDU9: =TDT9+(TDT9*$F$19) ->  | TGG9: =TGF9+(TGF9*$F$19) ->  | TIS9: =TIR9+(TIR9*$F$19) ->  | TLE9: =TLD9+(TLD9*$F$19) ->  | TNQ9: =TNP9+(TNP9*$F$19) ->  | TQC9: =TQB9+(TQB9*$F$19) ->  | TSO9: =TSN9+(TSN9*$F$19) ->  | TVA9: =TUZ9+(TUZ9*$F$19) ->  | TXM9: =TXL9+(TXL9*$F$19) ->  | TZY9: =TZX9+(TZX9*$F$19) ->  | UCK9: =UCJ9+(UCJ9*$F$19) ->  | UEW9: =UEV9+(UEV9*$F$19) ->  | UHI9: =UHH9+(UHH9*$F$19) ->  | UJU9: =UJT9+(UJT9*$F$19) ->  | UMG9: =UMF9+(UMF9*$F$19) ->  | UOS9: =UOR9+(UOR9*$F$19) ->  | URE9: =URD9+(URD9*$F$19) ->  | UTQ9: =UTP9+(UTP9*$F$19) ->  | UWC9: =UWB9+(UWB9*$F$19) ->  | UYO9: =UYN9+(UYN9*$F$19) ->  | VBA9: =VAZ9+(VAZ9*$F$19) ->  | VDM9: =VDL9+(VDL9*$F$19) ->  | VFY9: =VFX9+(VFX9*$F$19) ->  | VIK9: =VIJ9+(VIJ9*$F$19) ->  | VKW9: =VKV9+(VKV9*$F$19) ->  | VNI9: =VNH9+(VNH9*$F$19) ->  | VPU9: =VPT9+(VPT9*$F$19) ->  | VSG9: =VSF9+(VSF9*$F$19) ->  | VUS9: =VUR9+(VUR9*$F$19) ->  | VXE9: =VXD9+(VXD9*$F$19) ->  | VZQ9: =VZP9+(VZP9*$F$19) ->  | WCC9: =WCB9+(WCB9*$F$19) ->  | WEO9: =WEN9+(WEN9*$F$19) ->  | WHA9: =WGZ9+(WGZ9*$F$19) ->  | WJM9: =WJL9+(WJL9*$F$19) ->  | WLY9: =WLX9+(WLX9*$F$19) ->  | WOK9: =WOJ9+(WOJ9*$F$19) ->  | WQW9: =WQV9+(WQV9*$F$19) ->  | WTI9: =WTH9+(WTH9*$F$19) ->  | WVU9: =WVT9+(WVT9*$F$19) ->  | WYG9: =WYF9+(WYF9*$F$19) ->  | XAS9: =XAR9+(XAR9*$F$19) ->  | XDE9: =XDD9+(XDD9*$F$19) -> 
AY10: 10 | BA10: =T19 -> 
J11: Estimated Annual Income | K11: =K9+K7 ->  | L11: =L9+L7 ->  | M11: =M9+M7 ->  | N11: =N9+N7 ->  | AO11: =AO9+AO7 ->  | AY11: 11 | BA11: =U19 ->  | BB11: =BA11+(BA11*$F$21) ->  | BY11: =BX11+(BX11*$F$21) ->  | EK11: =EJ11+(EJ11*$F$21) ->  | GW11: =GV11+(GV11*$F$21) ->  | JI11: =JH11+(JH11*$F$21) ->  | LU11: =LT11+(LT11*$F$21) ->  | OG11: =OF11+(OF11*$F$21) ->  | QS11: =QR11+(QR11*$F$21) ->  | TE11: =TD11+(TD11*$F$21) ->  | VQ11: =VP11+(VP11*$F$21) ->  | YC11: =YB11+(YB11*$F$21) ->  | AAO11: =AAN11+(AAN11*$F$21) ->  | ADA11: =ACZ11+(ACZ11*$F$21) ->  | AFM11: =AFL11+(AFL11*$F$21) ->  | AHY11: =AHX11+(AHX11*$F$21) ->  | AKK11: =AKJ11+(AKJ11*$F$21) ->  | AMW11: =AMV11+(AMV11*$F$21) ->  | API11: =APH11+(APH11*$F$21) ->  | ARU11: =ART11+(ART11*$F$21) ->  | AUG11: =AUF11+(AUF11*$F$21) ->  | AWS11: =AWR11+(AWR11*$F$21) ->  | AZE11: =AZD11+(AZD11*$F$21) ->  | BBQ11: =BBP11+(BBP11*$F$21) ->  | BEC11: =BEB11+(BEB11*$F$21) ->  | BGO11: =BGN11+(BGN11*$F$21) ->  | BJA11: =BIZ11+(BIZ11*$F$21) ->  | BLM11: =BLL11+(BLL11*$F$21) ->  | BNY11: =BNX11+(BNX11*$F$21) ->  | BQK11: =BQJ11+(BQJ11*$F$21) ->  | BSW11: =BSV11+(BSV11*$F$21) ->  | BVI11: =BVH11+(BVH11*$F$21) ->  | BXU11: =BXT11+(BXT11*$F$21) ->  | CAG11: =CAF11+(CAF11*$F$21) ->  | CCS11: =CCR11+(CCR11*$F$21) ->  | CFE11: =CFD11+(CFD11*$F$21) ->  | CHQ11: =CHP11+(CHP11*$F$21) ->  | CKC11: =CKB11+(CKB11*$F$21) ->  | CMO11: =CMN11+(CMN11*$F$21) ->  | CPA11: =COZ11+(COZ11*$F$21) ->  | CRM11: =CRL11+(CRL11*$F$21) ->  | CTY11: =CTX11+(CTX11*$F$21) ->  | CWK11: =CWJ11+(CWJ11*$F$21) ->  | CYW11: =CYV11+(CYV11*$F$21) ->  | DBI11: =DBH11+(DBH11*$F$21) ->  | DDU11: =DDT11+(DDT11*$F$21) ->  | DGG11: =DGF11+(DGF11*$F$21) ->  | DIS11: =DIR11+(DIR11*$F$21) ->  | DLE11: =DLD11+(DLD11*$F$21) ->  | DNQ11: =DNP11+(DNP11*$F$21) ->  | DQC11: =DQB11+(DQB11*$F$21) ->  | DSO11: =DSN11+(DSN11*$F$21) ->  | DVA11: =DUZ11+(DUZ11*$F$21) ->  | DXM11: =DXL11+(DXL11*$F$21) ->  | DZY11: =DZX11+(DZX11*$F$21) ->  | ECK11: =ECJ11+(ECJ11*$F$21) ->  | EEW11: =EEV11+(EEV11*$F$21) ->  | EHI11: =EHH11+(EHH11*$F$21) ->  | EJU11: =EJT11+(EJT11*$F$21) ->  | EMG11: =EMF11+(EMF11*$F$21) ->  | EOS11: =EOR11+(EOR11*$F$21) ->  | ERE11: =ERD11+(ERD11*$F$21) ->  | ETQ11: =ETP11+(ETP11*$F$21) ->  | EWC11: =EWB11+(EWB11*$F$21) ->  | EYO11: =EYN11+(EYN11*$F$21) ->  | FBA11: =FAZ11+(FAZ11*$F$21) ->  | FDM11: =FDL11+(FDL11*$F$21) ->  | FFY11: =FFX11+(FFX11*$F$21) ->  | FIK11: =FIJ11+(FIJ11*$F$21) ->  | FKW11: =FKV11+(FKV11*$F$21) ->  | FNI11: =FNH11+(FNH11*$F$21) ->  | FPU11: =FPT11+(FPT11*$F$21) ->  | FSG11: =FSF11+(FSF11*$F$21) ->  | FUS11: =FUR11+(FUR11*$F$21) ->  | FXE11: =FXD11+(FXD11*$F$21) ->  | FZQ11: =FZP11+(FZP11*$F$21) ->  | GCC11: =GCB11+(GCB11*$F$21) ->  | GEO11: =GEN11+(GEN11*$F$21) ->  | GHA11: =GGZ11+(GGZ11*$F$21) ->  | GJM11: =GJL11+(GJL11*$F$21) ->  | GLY11: =GLX11+(GLX11*$F$21) ->  | GOK11: =GOJ11+(GOJ11*$F$21) ->  | GQW11: =GQV11+(GQV11*$F$21) ->  | GTI11: =GTH11+(GTH11*$F$21) ->  | GVU11: =GVT11+(GVT11*$F$21) ->  | GYG11: =GYF11+(GYF11*$F$21) ->  | HAS11: =HAR11+(HAR11*$F$21) ->  | HDE11: =HDD11+(HDD11*$F$21) ->  | HFQ11: =HFP11+(HFP11*$F$21) ->  | HIC11: =HIB11+(HIB11*$F$21) ->  | HKO11: =HKN11+(HKN11*$F$21) ->  | HNA11: =HMZ11+(HMZ11*$F$21) ->  | HPM11: =HPL11+(HPL11*$F$21) ->  | HRY11: =HRX11+(HRX11*$F$21) ->  | HUK11: =HUJ11+(HUJ11*$F$21) ->  | HWW11: =HWV11+(HWV11*$F$21) ->  | HZI11: =HZH11+(HZH11*$F$21) ->  | IBU11: =IBT11+(IBT11*$F$21) ->  | IEG11: =IEF11+(IEF11*$F$21) ->  | IGS11: =IGR11+(IGR11*$F$21) ->  | IJE11: =IJD11+(IJD11*$F$21) ->  | ILQ11: =ILP11+(ILP11*$F$21) ->  | IOC11: =IOB11+(IOB11*$F$21) ->  | IQO11: =IQN11+(IQN11*$F$21) ->  | ITA11: =ISZ11+(ISZ11*$F$21) ->  | IVM11: =IVL11+(IVL11*$F$21) ->  | IXY11: =IXX11+(IXX11*$F$21) ->  | JAK11: =JAJ11+(JAJ11*$F$21) ->  | JCW11: =JCV11+(JCV11*$F$21) ->  | JFI11: =JFH11+(JFH11*$F$21) ->  | JHU11: =JHT11+(JHT11*$F$21) ->  | JKG11: =JKF11+(JKF11*$F$21) ->  | JMS11: =JMR11+(JMR11*$F$21) ->  | JPE11: =JPD11+(JPD11*$F$21) ->  | JRQ11: =JRP11+(JRP11*$F$21) ->  | JUC11: =JUB11+(JUB11*$F$21) ->  | JWO11: =JWN11+(JWN11*$F$21) ->  | JZA11: =JYZ11+(JYZ11*$F$21) ->  | KBM11: =KBL11+(KBL11*$F$21) ->  | KDY11: =KDX11+(KDX11*$F$21) ->  | KGK11: =KGJ11+(KGJ11*$F$21) ->  | KIW11: =KIV11+(KIV11*$F$21) ->  | KLI11: =KLH11+(KLH11*$F$21) ->  | KNU11: =KNT11+(KNT11*$F$21) ->  | KQG11: =KQF11+(KQF11*$F$21) ->  | KSS11: =KSR11+(KSR11*$F$21) ->  | KVE11: =KVD11+(KVD11*$F$21) ->  | KXQ11: =KXP11+(KXP11*$F$21) ->  | LAC11: =LAB11+(LAB11*$F$21) ->  | LCO11: =LCN11+(LCN11*$F$21) ->  | LFA11: =LEZ11+(LEZ11*$F$21) ->  | LHM11: =LHL11+(LHL11*$F$21) ->  | LJY11: =LJX11+(LJX11*$F$21) ->  | LMK11: =LMJ11+(LMJ11*$F$21) ->  | LOW11: =LOV11+(LOV11*$F$21) ->  | LRI11: =LRH11+(LRH11*$F$21) ->  | LTU11: =LTT11+(LTT11*$F$21) ->  | LWG11: =LWF11+(LWF11*$F$21) ->  | LYS11: =LYR11+(LYR11*$F$21) ->  | MBE11: =MBD11+(MBD11*$F$21) ->  | MDQ11: =MDP11+(MDP11*$F$21) ->  | MGC11: =MGB11+(MGB11*$F$21) ->  | MIO11: =MIN11+(MIN11*$F$21) ->  | MLA11: =MKZ11+(MKZ11*$F$21) ->  | MNM11: =MNL11+(MNL11*$F$21) ->  | MPY11: =MPX11+(MPX11*$F$21) ->  | MSK11: =MSJ11+(MSJ11*$F$21) ->  | MUW11: =MUV11+(MUV11*$F$21) ->  | MXI11: =MXH11+(MXH11*$F$21) ->  | MZU11: =MZT11+(MZT11*$F$21) ->  | NCG11: =NCF11+(NCF11*$F$21) ->  | NES11: =NER11+(NER11*$F$21) ->  | NHE11: =NHD11+(NHD11*$F$21) ->  | NJQ11: =NJP11+(NJP11*$F$21) ->  | NMC11: =NMB11+(NMB11*$F$21) ->  | NOO11: =NON11+(NON11*$F$21) ->  | NRA11: =NQZ11+(NQZ11*$F$21) ->  | NTM11: =NTL11+(NTL11*$F$21) ->  | NVY11: =NVX11+(NVX11*$F$21) ->  | NYK11: =NYJ11+(NYJ11*$F$21) ->  | OAW11: =OAV11+(OAV11*$F$21) ->  | ODI11: =ODH11+(ODH11*$F$21) ->  | OFU11: =OFT11+(OFT11*$F$21) ->  | OIG11: =OIF11+(OIF11*$F$21) ->  | OKS11: =OKR11+(OKR11*$F$21) ->  | ONE11: =OND11+(OND11*$F$21) ->  | OPQ11: =OPP11+(OPP11*$F$21) ->  | OSC11: =OSB11+(OSB11*$F$21) ->  | OUO11: =OUN11+(OUN11*$F$21) ->  | OXA11: =OWZ11+(OWZ11*$F$21) ->  | OZM11: =OZL11+(OZL11*$F$21) ->  | PBY11: =PBX11+(PBX11*$F$21) ->  | PEK11: =PEJ11+(PEJ11*$F$21) ->  | PGW11: =PGV11+(PGV11*$F$21) ->  | PJI11: =PJH11+(PJH11*$F$21) ->  | PLU11: =PLT11+(PLT11*$F$21) ->  | POG11: =POF11+(POF11*$F$21) ->  | PQS11: =PQR11+(PQR11*$F$21) ->  | PTE11: =PTD11+(PTD11*$F$21) ->  | PVQ11: =PVP11+(PVP11*$F$21) ->  | PYC11: =PYB11+(PYB11*$F$21) ->  | QAO11: =QAN11+(QAN11*$F$21) ->  | QDA11: =QCZ11+(QCZ11*$F$21) ->  | QFM11: =QFL11+(QFL11*$F$21) ->  | QHY11: =QHX11+(QHX11*$F$21) ->  | QKK11: =QKJ11+(QKJ11*$F$21) ->  | QMW11: =QMV11+(QMV11*$F$21) ->  | QPI11: =QPH11+(QPH11*$F$21) ->  | QRU11: =QRT11+(QRT11*$F$21) ->  | QUG11: =QUF11+(QUF11*$F$21) ->  | QWS11: =QWR11+(QWR11*$F$21) ->  | QZE11: =QZD11+(QZD11*$F$21) ->  | RBQ11: =RBP11+(RBP11*$F$21) ->  | REC11: =REB11+(REB11*$F$21) ->  | RGO11: =RGN11+(RGN11*$F$21) ->  | RJA11: =RIZ11+(RIZ11*$F$21) ->  | RLM11: =RLL11+(RLL11*$F$21) ->  | RNY11: =RNX11+(RNX11*$F$21) ->  | RQK11: =RQJ11+(RQJ11*$F$21) ->  | RSW11: =RSV11+(RSV11*$F$21) ->  | RVI11: =RVH11+(RVH11*$F$21) ->  | RXU11: =RXT11+(RXT11*$F$21) ->  | SAG11: =SAF11+(SAF11*$F$21) ->  | SCS11: =SCR11+(SCR11*$F$21) ->  | SFE11: =SFD11+(SFD11*$F$21) ->  | SHQ11: =SHP11+(SHP11*$F$21) ->  | SKC11: =SKB11+(SKB11*$F$21) ->  | SMO11: =SMN11+(SMN11*$F$21) ->  | SPA11: =SOZ11+(SOZ11*$F$21) ->  | SRM11: =SRL11+(SRL11*$F$21) ->  | STY11: =STX11+(STX11*$F$21) ->  | SWK11: =SWJ11+(SWJ11*$F$21) ->  | SYW11: =SYV11+(SYV11*$F$21) ->  | TBI11: =TBH11+(TBH11*$F$21) ->  | TDU11: =TDT11+(TDT11*$F$21) ->  | TGG11: =TGF11+(TGF11*$F$21) ->  | TIS11: =TIR11+(TIR11*$F$21) ->  | TLE11: =TLD11+(TLD11*$F$21) ->  | TNQ11: =TNP11+(TNP11*$F$21) ->  | TQC11: =TQB11+(TQB11*$F$21) ->  | TSO11: =TSN11+(TSN11*$F$21) ->  | TVA11: =TUZ11+(TUZ11*$F$21) ->  | TXM11: =TXL11+(TXL11*$F$21) ->  | TZY11: =TZX11+(TZX11*$F$21) ->  | UCK11: =UCJ11+(UCJ11*$F$21) ->  | UEW11: =UEV11+(UEV11*$F$21) ->  | UHI11: =UHH11+(UHH11*$F$21) ->  | UJU11: =UJT11+(UJT11*$F$21) ->  | UMG11: =UMF11+(UMF11*$F$21) ->  | UOS11: =UOR11+(UOR11*$F$21) ->  | URE11: =URD11+(URD11*$F$21) ->  | UTQ11: =UTP11+(UTP11*$F$21) ->  | UWC11: =UWB11+(UWB11*$F$21) ->  | UYO11: =UYN11+(UYN11*$F$21) ->  | VBA11: =VAZ11+(VAZ11*$F$21) ->  | VDM11: =VDL11+(VDL11*$F$21) ->  | VFY11: =VFX11+(VFX11*$F$21) ->  | VIK11: =VIJ11+(VIJ11*$F$21) ->  | VKW11: =VKV11+(VKV11*$F$21) ->  | VNI11: =VNH11+(VNH11*$F$21) ->  | VPU11: =VPT11+(VPT11*$F$21) ->  | VSG11: =VSF11+(VSF11*$F$21) ->  | VUS11: =VUR11+(VUR11*$F$21) ->  | VXE11: =VXD11+(VXD11*$F$21) ->  | VZQ11: =VZP11+(VZP11*$F$21) ->  | WCC11: =WCB11+(WCB11*$F$21) ->  | WEO11: =WEN11+(WEN11*$F$21) ->  | WHA11: =WGZ11+(WGZ11*$F$21) ->  | WJM11: =WJL11+(WJL11*$F$21) ->  | WLY11: =WLX11+(WLX11*$F$21) ->  | WOK11: =WOJ11+(WOJ11*$F$21) ->  | WQW11: =WQV11+(WQV11*$F$21) ->  | WTI11: =WTH11+(WTH11*$F$21) ->  | WVU11: =WVT11+(WVT11*$F$21) ->  | WYG11: =WYF11+(WYF11*$F$21) ->  | XAS11: =XAR11+(XAR11*$F$21) ->  | XDE11: =XDD11+(XDD11*$F$21) -> 
A12: Financial Parameters | E12: Units | G12: Notes | AY12: 12 | BA12: =V19 -> 
J13: Annual Expenses | AY13: 13 | BA13: =W19 ->  | BE13: Onsite
B14: Project Start-Up Year | E14: (yr) | F14: 2010 | J14: Estimated Total O&M Expenses | K14: =IF(Cost!E6="Automatic",Cost!E14,Cost!E53) -> 10000 | L14: =(K14*$F$24)+K14 -> 10400 | M14: =(L14*$F$24)+L14 -> 10816 | N14: 11248.64 | O14: 11698.5856 | P14: 12166.52902 | Q14: 12653.19018 | R14: 13159.31779 | S14: 13685.6905 | T14: 14233.11812 | U14: 14802.44285 | V14: 15394.54056 | W14: 16010.32219 | X14: 16650.73507 | Y14: 17316.76448 | Z14: 18009.43506 | AA14: 18729.81246 | AB14: 19479.00496 | AC14: 20258.16515 | AD14: 21068.49176 | AE14: 21911.23143 | AF14: 22787.68069 | AG14: 23699.18792 | AH14: 24647.15543 | AI14: 25633.04165 | AJ14: 26658.36331 | AK14: 27724.69785 | AL14: 28833.68576 | AM14: 29987.03319 | AN14: 31186.51452 | AO14: =(AN14*$F$24)+AN14 -> 32433.9751 | AP14: =(AO14*$F$24)+AO14 -> 33731.3341 | AQ14: =(AP14*$F$24)+AP14 -> 35080.58747 | AR14: =(AQ14*$F$24)+AQ14 -> 36483.81097 | AS14: =(AR14*$F$24)+AR14 -> 37943.16341 | AT14: =(AS14*$F$24)+AS14 -> 39460.88994 | AU14: =(AT14*$F$24)+AT14 -> 41039.32554 | AV14: =(AU14*$F$24)+AU14 -> 42680.89856 | AW14: =(AV14*$F$24)+AV14 -> 44388.1345 | AX14: 46163.65988 | AY14: 14 | BA14: =X19 ->  | BE14: Offsite
B15: Peak Power | E15: (kw) | F15: ='Energy Production'!F19 ->  | AY15: 15 | BA15: =Y19 -> 
B16: Average Annual Energy | E16: (kWh) | F16: =F7 ->  | J16: Financing | AY16: 16 | BA16: =Z19 -> 
B17: Initial Avoided Cost of Energy (Retail) | E17: ($/kWh) | F17: 0.1 | G17: $0.07 - $0.17 | J17: Income Before Loan and Interest Payment | K17: =K11-K14 ->  | AO17: =AO11-AO14 ->  | AY17: 17 | BA17: =AA19 -> 
B18: Initial ISO Energy Value (Wholesale) | E18: ($/kWh) | F18: 0.04 | G18: $0.03 - $0.05 | J18: Uniform Annual Financing Payment | K18: =IF(K3<=$F$30,PMT($F$29/12,$F$30*12,$F$28,0,0)*12,0) ->  | L18: =IF(L3<=$F$30,PMT($F$29/12,$F$30*12,$F$28,0,0)*12,0) ->  | AO18: =IF(AO3<=$F$30,PMT($F$29/12,$F$30*12,$F$28,0,0)*12,0) -> 0 | AP18: 0 | AQ18: 0 | AR18: 0 | AS18: 0 | AT18: 0 | AU18: 0 | AV18: 0 | AW18: 0 | AX18: 0 | AY18: 18 | BA18: =AB19 -> 
B19: Assumed Annual Power Rate Escalator | E19: (%) | F19: 0.02 | J19: Annual Benefit | K19: =K17+K18 ->  | S19: =S17+S18 ->  | T19: =T17+T18 ->  | AO19: =AO17+AO18 ->  | AY19: 19 | BA19: =AC19 -> 
B20: Initial REC Value | E20: ($/kWh) | F20: 0.02 | AY20: 20 | BA20: =AD19 -> 
B21: REC Escalator | E21: (%) | F21: 0.02 | AY21: 21 | BA21: =AE19 ->  | BE21: 0 | BX21: =IF(BX6<=$F$30,PMT($F$29/12,$F$30*12,$F$28,0,0)*12,0) ->  | EJ21: =IF(EJ6<=$F$30,PMT($F$29/12,$F$30*12,$F$28,0,0)*12,0) ->  | GV21: =IF(GV6<=$F$30,PMT($F$29/12,$F$30*12,$F$28,0,0)*12,0) ->  | JH21: =IF(JH6<=$F$30,PMT($F$29/12,$F$30*12,$F$28,0,0)*12,0) ->  | LT21: =IF(LT6<=$F$30,PMT($F$29/12,$F$30*12,$F$28,0,0)*12,0) ->  | OF21: =IF(OF6<=$F$30,PMT($F$29/12,$F$30*12,$F$28,0,0)*12,0) ->  | QR21: =IF(QR6<=$F$30,PMT($F$29/12,$F$30*12,$F$28,0,0)*12,0) ->  | TD21: =IF(TD6<=$F$30,PMT($F$29/12,$F$30*12,$F$28,0,0)*12,0) ->  | VP21: =IF(VP6<=$F$30,PMT($F$29/12,$F$30*12,$F$28,0,0)*12,0) ->  | YB21: =IF(YB6<=$F$30,PMT($F$29/12,$F$30*12,$F$28,0,0)*12,0) ->  | AAN21: =IF(AAN6<=$F$30,PMT($F$29/12,$F$30*12,$F$28,0,0)*12,0) ->  | ACZ21: =IF(ACZ6<=$F$30,PMT($F$29/12,$F$30*12,$F$28,0,0)*12,0) ->  | AFL21: =IF(AFL6<=$F$30,PMT($F$29/12,$F$30*12,$F$28,0,0)*12,0) ->  | AHX21: =IF(AHX6<=$F$30,PMT($F$29/12,$F$30*12,$F$28,0,0)*12,0) ->  | AKJ21: =IF(AKJ6<=$F$30,PMT($F$29/12,$F$30*12,$F$28,0,0)*12,0) ->  | AMV21: =IF(AMV6<=$F$30,PMT($F$29/12,$F$30*12,$F$28,0,0)*12,0) ->  | APH21: =IF(APH6<=$F$30,PMT($F$29/12,$F$30*12,$F$28,0,0)*12,0) ->  | ART21: =IF(ART6<=$F$30,PMT($F$29/12,$F$30*12,$F$28,0,0)*12,0) ->  | AUF21: =IF(AUF6<=$F$30,PMT($F$29/12,$F$30*12,$F$28,0,0)*12,0) ->  | AWR21: =IF(AWR6<=$F$30,PMT($F$29/12,$F$30*12,$F$28,0,0)*12,0) ->  | AZD21: =IF(AZD6<=$F$30,PMT($F$29/12,$F$30*12,$F$28,0,0)*12,0) ->  | BBP21: =IF(BBP6<=$F$30,PMT($F$29/12,$F$30*12,$F$28,0,0)*12,0) ->  | BEB21: =IF(BEB6<=$F$30,PMT($F$29/12,$F$30*12,$F$28,0,0)*12,0) ->  | BGN21: =IF(BGN6<=$F$30,PMT($F$29/12,$F$30*12,$F$28,0,0)*12,0) ->  | BIZ21: =IF(BIZ6<=$F$30,PMT($F$29/12,$F$30*12,$F$28,0,0)*12,0) ->  | BLL21: =IF(BLL6<=$F$30,PMT($F$29/12,$F$30*12,$F$28,0,0)*12,0) ->  | BNX21: =IF(BNX6<=$F$30,PMT($F$29/12,$F$30*12,$F$28,0,0)*12,0) ->  | BQJ21: =IF(BQJ6<=$F$30,PMT($F$29/12,$F$30*12,$F$28,0,0)*12,0) ->  | BSV21: =IF(BSV6<=$F$30,PMT($F$29/12,$F$30*12,$F$28,0,0)*12,0) ->  | BVH21: =IF(BVH6<=$F$30,PMT($F$29/12,$F$30*12,$F$28,0,0)*12,0) ->  | BXT21: =IF(BXT6<=$F$30,PMT($F$29/12,$F$30*12,$F$28,0,0)*12,0) ->  | CAF21: =IF(CAF6<=$F$30,PMT($F$29/12,$F$30*12,$F$28,0,0)*12,0) ->  | CCR21: =IF(CCR6<=$F$30,PMT($F$29/12,$F$30*12,$F$28,0,0)*12,0) ->  | CFD21: =IF(CFD6<=$F$30,PMT($F$29/12,$F$30*12,$F$28,0,0)*12,0) ->  | CHP21: =IF(CHP6<=$F$30,PMT($F$29/12,$F$30*12,$F$28,0,0)*12,0) ->  | CKB21: =IF(CKB6<=$F$30,PMT($F$29/12,$F$30*12,$F$28,0,0)*12,0) ->  | CMN21: =IF(CMN6<=$F$30,PMT($F$29/12,$F$30*12,$F$28,0,0)*12,0) ->  | COZ21: =IF(COZ6<=$F$30,PMT($F$29/12,$F$30*12,$F$28,0,0)*12,0) ->  | CRL21: =IF(CRL6<=$F$30,PMT($F$29/12,$F$30*12,$F$28,0,0)*12,0) ->  | CTX21: =IF(CTX6<=$F$30,PMT($F$29/12,$F$30*12,$F$28,0,0)*12,0) ->  | CWJ21: =IF(CWJ6<=$F$30,PMT($F$29/12,$F$30*12,$F$28,0,0)*12,0) ->  | CYV21: =IF(CYV6<=$F$30,PMT($F$29/12,$F$30*12,$F$28,0,0)*12,0) ->  | DBH21: =IF(DBH6<=$F$30,PMT($F$29/12,$F$30*12,$F$28,0,0)*12,0) ->  | DDT21: =IF(DDT6<=$F$30,PMT($F$29/12,$F$30*12,$F$28,0,0)*12,0) ->  | DGF21: =IF(DGF6<=$F$30,PMT($F$29/12,$F$30*12,$F$28,0,0)*12,0) ->  | DIR21: =IF(DIR6<=$F$30,PMT($F$29/12,$F$30*12,$F$28,0,0)*12,0) ->  | DLD21: =IF(DLD6<=$F$30,PMT($F$29/12,$F$30*12,$F$28,0,0)*12,0) ->  | DNP21: =IF(DNP6<=$F$30,PMT($F$29/12,$F$30*12,$F$28,0,0)*12,0) ->  | DQB21: =IF(DQB6<=$F$30,PMT($F$29/12,$F$30*12,$F$28,0,0)*12,0) ->  | DSN21: =IF(DSN6<=$F$30,PMT($F$29/12,$F$30*12,$F$28,0,0)*12,0) ->  | DUZ21: =IF(DUZ6<=$F$30,PMT($F$29/12,$F$30*12,$F$28,0,0)*12,0) ->  | DXL21: =IF(DXL6<=$F$30,PMT($F$29/12,$F$30*12,$F$28,0,0)*12,0) ->  | DZX21: =IF(DZX6<=$F$30,PMT($F$29/12,$F$30*12,$F$28,0,0)*12,0) ->  | ECJ21: =IF(ECJ6<=$F$30,PMT($F$29/12,$F$30*12,$F$28,0,0)*12,0) ->  | EEV21: =IF(EEV6<=$F$30,PMT($F$29/12,$F$30*12,$F$28,0,0)*12,0) ->  | EHH21: =IF(EHH6<=$F$30,PMT($F$29/12,$F$30*12,$F$28,0,0)*12,0) ->  | EJT21: =IF(EJT6<=$F$30,PMT($F$29/12,$F$30*12,$F$28,0,0)*12,0) ->  | EMF21: =IF(EMF6<=$F$30,PMT($F$29/12,$F$30*12,$F$28,0,0)*12,0) ->  | EOR21: =IF(EOR6<=$F$30,PMT($F$29/12,$F$30*12,$F$28,0,0)*12,0) ->  | ERD21: =IF(ERD6<=$F$30,PMT($F$29/12,$F$30*12,$F$28,0,0)*12,0) ->  | ETP21: =IF(ETP6<=$F$30,PMT($F$29/12,$F$30*12,$F$28,0,0)*12,0) ->  | EWB21: =IF(EWB6<=$F$30,PMT($F$29/12,$F$30*12,$F$28,0,0)*12,0) ->  | EYN21: =IF(EYN6<=$F$30,PMT($F$29/12,$F$30*12,$F$28,0,0)*12,0) ->  | FAZ21: =IF(FAZ6<=$F$30,PMT($F$29/12,$F$30*12,$F$28,0,0)*12,0) ->  | FDL21: =IF(FDL6<=$F$30,PMT($F$29/12,$F$30*12,$F$28,0,0)*12,0) ->  | FFX21: =IF(FFX6<=$F$30,PMT($F$29/12,$F$30*12,$F$28,0,0)*12,0) ->  | FIJ21: =IF(FIJ6<=$F$30,PMT($F$29/12,$F$30*12,$F$28,0,0)*12,0) ->  | FKV21: =IF(FKV6<=$F$30,PMT($F$29/12,$F$30*12,$F$28,0,0)*12,0) ->  | FNH21: =IF(FNH6<=$F$30,PMT($F$29/12,$F$30*12,$F$28,0,0)*12,0) ->  | FPT21: =IF(FPT6<=$F$30,PMT($F$29/12,$F$30*12,$F$28,0,0)*12,0) ->  | FSF21: =IF(FSF6<=$F$30,PMT($F$29/12,$F$30*12,$F$28,0,0)*12,0) ->  | FUR21: =IF(FUR6<=$F$30,PMT($F$29/12,$F$30*12,$F$28,0,0)*12,0) ->  | FXD21: =IF(FXD6<=$F$30,PMT($F$29/12,$F$30*12,$F$28,0,0)*12,0) ->  | FZP21: =IF(FZP6<=$F$30,PMT($F$29/12,$F$30*12,$F$28,0,0)*12,0) ->  | GCB21: =IF(GCB6<=$F$30,PMT($F$29/12,$F$30*12,$F$28,0,0)*12,0) ->  | GEN21: =IF(GEN6<=$F$30,PMT($F$29/12,$F$30*12,$F$28,0,0)*12,0) ->  | GGZ21: =IF(GGZ6<=$F$30,PMT($F$29/12,$F$30*12,$F$28,0,0)*12,0) ->  | GJL21: =IF(GJL6<=$F$30,PMT($F$29/12,$F$30*12,$F$28,0,0)*12,0) ->  | GLX21: =IF(GLX6<=$F$30,PMT($F$29/12,$F$30*12,$F$28,0,0)*12,0) ->  | GOJ21: =IF(GOJ6<=$F$30,PMT($F$29/12,$F$30*12,$F$28,0,0)*12,0) ->  | GQV21: =IF(GQV6<=$F$30,PMT($F$29/12,$F$30*12,$F$28,0,0)*12,0) ->  | GTH21: =IF(GTH6<=$F$30,PMT($F$29/12,$F$30*12,$F$28,0,0)*12,0) ->  | GVT21: =IF(GVT6<=$F$30,PMT($F$29/12,$F$30*12,$F$28,0,0)*12,0) ->  | GYF21: =IF(GYF6<=$F$30,PMT($F$29/12,$F$30*12,$F$28,0,0)*12,0) ->  | HAR21: =IF(HAR6<=$F$30,PMT($F$29/12,$F$30*12,$F$28,0,0)*12,0) ->  | HDD21: =IF(HDD6<=$F$30,PMT($F$29/12,$F$30*12,$F$28,0,0)*12,0) ->  | HFP21: =IF(HFP6<=$F$30,PMT($F$29/12,$F$30*12,$F$28,0,0)*12,0) ->  | HIB21: =IF(HIB6<=$F$30,PMT($F$29/12,$F$30*12,$F$28,0,0)*12,0) ->  | HKN21: =IF(HKN6<=$F$30,PMT($F$29/12,$F$30*12,$F$28,0,0)*12,0) ->  | HMZ21: =IF(HMZ6<=$F$30,PMT($F$29/12,$F$30*12,$F$28,0,0)*12,0) ->  | HPL21: =IF(HPL6<=$F$30,PMT($F$29/12,$F$30*12,$F$28,0,0)*12,0) ->  | HRX21: =IF(HRX6<=$F$30,PMT($F$29/12,$F$30*12,$F$28,0,0)*12,0) ->  | HUJ21: =IF(HUJ6<=$F$30,PMT($F$29/12,$F$30*12,$F$28,0,0)*12,0) ->  | HWV21: =IF(HWV6<=$F$30,PMT($F$29/12,$F$30*12,$F$28,0,0)*12,0) ->  | HZH21: =IF(HZH6<=$F$30,PMT($F$29/12,$F$30*12,$F$28,0,0)*12,0) ->  | IBT21: =IF(IBT6<=$F$30,PMT($F$29/12,$F$30*12,$F$28,0,0)*12,0) ->  | IEF21: =IF(IEF6<=$F$30,PMT($F$29/12,$F$30*12,$F$28,0,0)*12,0) ->  | IGR21: =IF(IGR6<=$F$30,PMT($F$29/12,$F$30*12,$F$28,0,0)*12,0) ->  | IJD21: =IF(IJD6<=$F$30,PMT($F$29/12,$F$30*12,$F$28,0,0)*12,0) ->  | ILP21: =IF(ILP6<=$F$30,PMT($F$29/12,$F$30*12,$F$28,0,0)*12,0) ->  | IOB21: =IF(IOB6<=$F$30,PMT($F$29/12,$F$30*12,$F$28,0,0)*12,0) ->  | IQN21: =IF(IQN6<=$F$30,PMT($F$29/12,$F$30*12,$F$28,0,0)*12,0) ->  | ISZ21: =IF(ISZ6<=$F$30,PMT($F$29/12,$F$30*12,$F$28,0,0)*12,0) ->  | IVL21: =IF(IVL6<=$F$30,PMT($F$29/12,$F$30*12,$F$28,0,0)*12,0) ->  | IXX21: =IF(IXX6<=$F$30,PMT($F$29/12,$F$30*12,$F$28,0,0)*12,0) ->  | JAJ21: =IF(JAJ6<=$F$30,PMT($F$29/12,$F$30*12,$F$28,0,0)*12,0) ->  | JCV21: =IF(JCV6<=$F$30,PMT($F$29/12,$F$30*12,$F$28,0,0)*12,0) ->  | JFH21: =IF(JFH6<=$F$30,PMT($F$29/12,$F$30*12,$F$28,0,0)*12,0) ->  | JHT21: =IF(JHT6<=$F$30,PMT($F$29/12,$F$30*12,$F$28,0,0)*12,0) ->  | JKF21: =IF(JKF6<=$F$30,PMT($F$29/12,$F$30*12,$F$28,0,0)*12,0) ->  | JMR21: =IF(JMR6<=$F$30,PMT($F$29/12,$F$30*12,$F$28,0,0)*12,0) ->  | JPD21: =IF(JPD6<=$F$30,PMT($F$29/12,$F$30*12,$F$28,0,0)*12,0) ->  | JRP21: =IF(JRP6<=$F$30,PMT($F$29/12,$F$30*12,$F$28,0,0)*12,0) ->  | JUB21: =IF(JUB6<=$F$30,PMT($F$29/12,$F$30*12,$F$28,0,0)*12,0) ->  | JWN21: =IF(JWN6<=$F$30,PMT($F$29/12,$F$30*12,$F$28,0,0)*12,0) ->  | JYZ21: =IF(JYZ6<=$F$30,PMT($F$29/12,$F$30*12,$F$28,0,0)*12,0) ->  | KBL21: =IF(KBL6<=$F$30,PMT($F$29/12,$F$30*12,$F$28,0,0)*12,0) ->  | KDX21: =IF(KDX6<=$F$30,PMT($F$29/12,$F$30*12,$F$28,0,0)*12,0) ->  | KGJ21: =IF(KGJ6<=$F$30,PMT($F$29/12,$F$30*12,$F$28,0,0)*12,0) ->  | KIV21: =IF(KIV6<=$F$30,PMT($F$29/12,$F$30*12,$F$28,0,0)*12,0) ->  | KLH21: =IF(KLH6<=$F$30,PMT($F$29/12,$F$30*12,$F$28,0,0)*12,0) ->  | KNT21: =IF(KNT6<=$F$30,PMT($F$29/12,$F$30*12,$F$28,0,0)*12,0) ->  | KQF21: =IF(KQF6<=$F$30,PMT($F$29/12,$F$30*12,$F$28,0,0)*12,0) ->  | KSR21: =IF(KSR6<=$F$30,PMT($F$29/12,$F$30*12,$F$28,0,0)*12,0) ->  | KVD21: =IF(KVD6<=$F$30,PMT($F$29/12,$F$30*12,$F$28,0,0)*12,0) ->  | KXP21: =IF(KXP6<=$F$30,PMT($F$29/12,$F$30*12,$F$28,0,0)*12,0) ->  | LAB21: =IF(LAB6<=$F$30,PMT($F$29/12,$F$30*12,$F$28,0,0)*12,0) ->  | LCN21: =IF(LCN6<=$F$30,PMT($F$29/12,$F$30*12,$F$28,0,0)*12,0) ->  | LEZ21: =IF(LEZ6<=$F$30,PMT($F$29/12,$F$30*12,$F$28,0,0)*12,0) ->  | LHL21: =IF(LHL6<=$F$30,PMT($F$29/12,$F$30*12,$F$28,0,0)*12,0) ->  | LJX21: =IF(LJX6<=$F$30,PMT($F$29/12,$F$30*12,$F$28,0,0)*12,0) ->  | LMJ21: =IF(LMJ6<=$F$30,PMT($F$29/12,$F$30*12,$F$28,0,0)*12,0) ->  | LOV21: =IF(LOV6<=$F$30,PMT($F$29/12,$F$30*12,$F$28,0,0)*12,0) ->  | LRH21: =IF(LRH6<=$F$30,PMT($F$29/12,$F$30*12,$F$28,0,0)*12,0) ->  | LTT21: =IF(LTT6<=$F$30,PMT($F$29/12,$F$30*12,$F$28,0,0)*12,0) ->  | LWF21: =IF(LWF6<=$F$30,PMT($F$29/12,$F$30*12,$F$28,0,0)*12,0) ->  | LYR21: =IF(LYR6<=$F$30,PMT($F$29/12,$F$30*12,$F$28,0,0)*12,0) ->  | MBD21: =IF(MBD6<=$F$30,PMT($F$29/12,$F$30*12,$F$28,0,0)*12,0) ->  | MDP21: =IF(MDP6<=$F$30,PMT($F$29/12,$F$30*12,$F$28,0,0)*12,0) ->  | MGB21: =IF(MGB6<=$F$30,PMT($F$29/12,$F$30*12,$F$28,0,0)*12,0) ->  | MIN21: =IF(MIN6<=$F$30,PMT($F$29/12,$F$30*12,$F$28,0,0)*12,0) ->  | MKZ21: =IF(MKZ6<=$F$30,PMT($F$29/12,$F$30*12,$F$28,0,0)*12,0) ->  | MNL21: =IF(MNL6<=$F$30,PMT($F$29/12,$F$30*12,$F$28,0,0)*12,0) ->  | MPX21: =IF(MPX6<=$F$30,PMT($F$29/12,$F$30*12,$F$28,0,0)*12,0) ->  | MSJ21: =IF(MSJ6<=$F$30,PMT($F$29/12,$F$30*12,$F$28,0,0)*12,0) ->  | MUV21: =IF(MUV6<=$F$30,PMT($F$29/12,$F$30*12,$F$28,0,0)*12,0) ->  | MXH21: =IF(MXH6<=$F$30,PMT($F$29/12,$F$30*12,$F$28,0,0)*12,0) ->  | MZT21: =IF(MZT6<=$F$30,PMT($F$29/12,$F$30*12,$F$28,0,0)*12,0) ->  | NCF21: =IF(NCF6<=$F$30,PMT($F$29/12,$F$30*12,$F$28,0,0)*12,0) ->  | NER21: =IF(NER6<=$F$30,PMT($F$29/12,$F$30*12,$F$28,0,0)*12,0) ->  | NHD21: =IF(NHD6<=$F$30,PMT($F$29/12,$F$30*12,$F$28,0,0)*12,0) ->  | NJP21: =IF(NJP6<=$F$30,PMT($F$29/12,$F$30*12,$F$28,0,0)*12,0) ->  | NMB21: =IF(NMB6<=$F$30,PMT($F$29/12,$F$30*12,$F$28,0,0)*12,0) ->  | NON21: =IF(NON6<=$F$30,PMT($F$29/12,$F$30*12,$F$28,0,0)*12,0) ->  | NQZ21: =IF(NQZ6<=$F$30,PMT($F$29/12,$F$30*12,$F$28,0,0)*12,0) ->  | NTL21: =IF(NTL6<=$F$30,PMT($F$29/12,$F$30*12,$F$28,0,0)*12,0) ->  | NVX21: =IF(NVX6<=$F$30,PMT($F$29/12,$F$30*12,$F$28,0,0)*12,0) ->  | NYJ21: =IF(NYJ6<=$F$30,PMT($F$29/12,$F$30*12,$F$28,0,0)*12,0) ->  | OAV21: =IF(OAV6<=$F$30,PMT($F$29/12,$F$30*12,$F$28,0,0)*12,0) ->  | ODH21: =IF(ODH6<=$F$30,PMT($F$29/12,$F$30*12,$F$28,0,0)*12,0) ->  | OFT21: =IF(OFT6<=$F$30,PMT($F$29/12,$F$30*12,$F$28,0,0)*12,0) ->  | OIF21: =IF(OIF6<=$F$30,PMT($F$29/12,$F$30*12,$F$28,0,0)*12,0) ->  | OKR21: =IF(OKR6<=$F$30,PMT($F$29/12,$F$30*12,$F$28,0,0)*12,0) ->  | OND21: =IF(OND6<=$F$30,PMT($F$29/12,$F$30*12,$F$28,0,0)*12,0) ->  | OPP21: =IF(OPP6<=$F$30,PMT($F$29/12,$F$30*12,$F$28,0,0)*12,0) ->  | OSB21: =IF(OSB6<=$F$30,PMT($F$29/12,$F$30*12,$F$28,0,0)*12,0) ->  | OUN21: =IF(OUN6<=$F$30,PMT($F$29/12,$F$30*12,$F$28,0,0)*12,0) ->  | OWZ21: =IF(OWZ6<=$F$30,PMT($F$29/12,$F$30*12,$F$28,0,0)*12,0) ->  | OZL21: =IF(OZL6<=$F$30,PMT($F$29/12,$F$30*12,$F$28,0,0)*12,0) ->  | PBX21: =IF(PBX6<=$F$30,PMT($F$29/12,$F$30*12,$F$28,0,0)*12,0) ->  | PEJ21: =IF(PEJ6<=$F$30,PMT($F$29/12,$F$30*12,$F$28,0,0)*12,0) ->  | PGV21: =IF(PGV6<=$F$30,PMT($F$29/12,$F$30*12,$F$28,0,0)*12,0) ->  | PJH21: =IF(PJH6<=$F$30,PMT($F$29/12,$F$30*12,$F$28,0,0)*12,0) ->  | PLT21: =IF(PLT6<=$F$30,PMT($F$29/12,$F$30*12,$F$28,0,0)*12,0) ->  | POF21: =IF(POF6<=$F$30,PMT($F$29/12,$F$30*12,$F$28,0,0)*12,0) ->  | PQR21: =IF(PQR6<=$F$30,PMT($F$29/12,$F$30*12,$F$28,0,0)*12,0) ->  | PTD21: =IF(PTD6<=$F$30,PMT($F$29/12,$F$30*12,$F$28,0,0)*12,0) ->  | PVP21: =IF(PVP6<=$F$30,PMT($F$29/12,$F$30*12,$F$28,0,0)*12,0) ->  | PYB21: =IF(PYB6<=$F$30,PMT($F$29/12,$F$30*12,$F$28,0,0)*12,0) ->  | QAN21: =IF(QAN6<=$F$30,PMT($F$29/12,$F$30*12,$F$28,0,0)*12,0) ->  | QCZ21: =IF(QCZ6<=$F$30,PMT($F$29/12,$F$30*12,$F$28,0,0)*12,0) ->  | QFL21: =IF(QFL6<=$F$30,PMT($F$29/12,$F$30*12,$F$28,0,0)*12,0) ->  | QHX21: =IF(QHX6<=$F$30,PMT($F$29/12,$F$30*12,$F$28,0,0)*12,0) ->  | QKJ21: =IF(QKJ6<=$F$30,PMT($F$29/12,$F$30*12,$F$28,0,0)*12,0) ->  | QMV21: =IF(QMV6<=$F$30,PMT($F$29/12,$F$30*12,$F$28,0,0)*12,0) ->  | QPH21: =IF(QPH6<=$F$30,PMT($F$29/12,$F$30*12,$F$28,0,0)*12,0) ->  | QRT21: =IF(QRT6<=$F$30,PMT($F$29/12,$F$30*12,$F$28,0,0)*12,0) ->  | QUF21: =IF(QUF6<=$F$30,PMT($F$29/12,$F$30*12,$F$28,0,0)*12,0) ->  | QWR21: =IF(QWR6<=$F$30,PMT($F$29/12,$F$30*12,$F$28,0,0)*12,0) ->  | QZD21: =IF(QZD6<=$F$30,PMT($F$29/12,$F$30*12,$F$28,0,0)*12,0) ->  | RBP21: =IF(RBP6<=$F$30,PMT($F$29/12,$F$30*12,$F$28,0,0)*12,0) ->  | REB21: =IF(REB6<=$F$30,PMT($F$29/12,$F$30*12,$F$28,0,0)*12,0) ->  | RGN21: =IF(RGN6<=$F$30,PMT($F$29/12,$F$30*12,$F$28,0,0)*12,0) ->  | RIZ21: =IF(RIZ6<=$F$30,PMT($F$29/12,$F$30*12,$F$28,0,0)*12,0) ->  | RLL21: =IF(RLL6<=$F$30,PMT($F$29/12,$F$30*12,$F$28,0,0)*12,0) ->  | RNX21: =IF(RNX6<=$F$30,PMT($F$29/12,$F$30*12,$F$28,0,0)*12,0) ->  | RQJ21: =IF(RQJ6<=$F$30,PMT($F$29/12,$F$30*12,$F$28,0,0)*12,0) ->  | RSV21: =IF(RSV6<=$F$30,PMT($F$29/12,$F$30*12,$F$28,0,0)*12,0) ->  | RVH21: =IF(RVH6<=$F$30,PMT($F$29/12,$F$30*12,$F$28,0,0)*12,0) ->  | RXT21: =IF(RXT6<=$F$30,PMT($F$29/12,$F$30*12,$F$28,0,0)*12,0) ->  | SAF21: =IF(SAF6<=$F$30,PMT($F$29/12,$F$30*12,$F$28,0,0)*12,0) ->  | SCR21: =IF(SCR6<=$F$30,PMT($F$29/12,$F$30*12,$F$28,0,0)*12,0) ->  | SFD21: =IF(SFD6<=$F$30,PMT($F$29/12,$F$30*12,$F$28,0,0)*12,0) ->  | SHP21: =IF(SHP6<=$F$30,PMT($F$29/12,$F$30*12,$F$28,0,0)*12,0) ->  | SKB21: =IF(SKB6<=$F$30,PMT($F$29/12,$F$30*12,$F$28,0,0)*12,0) ->  | SMN21: =IF(SMN6<=$F$30,PMT($F$29/12,$F$30*12,$F$28,0,0)*12,0) ->  | SOZ21: =IF(SOZ6<=$F$30,PMT($F$29/12,$F$30*12,$F$28,0,0)*12,0) ->  | SRL21: =IF(SRL6<=$F$30,PMT($F$29/12,$F$30*12,$F$28,0,0)*12,0) ->  | STX21: =IF(STX6<=$F$30,PMT($F$29/12,$F$30*12,$F$28,0,0)*12,0) ->  | SWJ21: =IF(SWJ6<=$F$30,PMT($F$29/12,$F$30*12,$F$28,0,0)*12,0) ->  | SYV21: =IF(SYV6<=$F$30,PMT($F$29/12,$F$30*12,$F$28,0,0)*12,0) ->  | TBH21: =IF(TBH6<=$F$30,PMT($F$29/12,$F$30*12,$F$28,0,0)*12,0) ->  | TDT21: =IF(TDT6<=$F$30,PMT($F$29/12,$F$30*12,$F$28,0,0)*12,0) ->  | TGF21: =IF(TGF6<=$F$30,PMT($F$29/12,$F$30*12,$F$28,0,0)*12,0) ->  | TIR21: =IF(TIR6<=$F$30,PMT($F$29/12,$F$30*12,$F$28,0,0)*12,0) ->  | TLD21: =IF(TLD6<=$F$30,PMT($F$29/12,$F$30*12,$F$28,0,0)*12,0) ->  | TNP21: =IF(TNP6<=$F$30,PMT($F$29/12,$F$30*12,$F$28,0,0)*12,0) ->  | TQB21: =IF(TQB6<=$F$30,PMT($F$29/12,$F$30*12,$F$28,0,0)*12,0) ->  | TSN21: =IF(TSN6<=$F$30,PMT($F$29/12,$F$30*12,$F$28,0,0)*12,0) ->  | TUZ21: =IF(TUZ6<=$F$30,PMT($F$29/12,$F$30*12,$F$28,0,0)*12,0) ->  | TXL21: =IF(TXL6<=$F$30,PMT($F$29/12,$F$30*12,$F$28,0,0)*12,0) ->  | TZX21: =IF(TZX6<=$F$30,PMT($F$29/12,$F$30*12,$F$28,0,0)*12,0) ->  | UCJ21: =IF(UCJ6<=$F$30,PMT($F$29/12,$F$30*12,$F$28,0,0)*12,0) ->  | UEV21: =IF(UEV6<=$F$30,PMT($F$29/12,$F$30*12,$F$28,0,0)*12,0) ->  | UHH21: =IF(UHH6<=$F$30,PMT($F$29/12,$F$30*12,$F$28,0,0)*12,0) ->  | UJT21: =IF(UJT6<=$F$30,PMT($F$29/12,$F$30*12,$F$28,0,0)*12,0) ->  | UMF21: =IF(UMF6<=$F$30,PMT($F$29/12,$F$30*12,$F$28,0,0)*12,0) ->  | UOR21: =IF(UOR6<=$F$30,PMT($F$29/12,$F$30*12,$F$28,0,0)*12,0) ->  | URD21: =IF(URD6<=$F$30,PMT($F$29/12,$F$30*12,$F$28,0,0)*12,0) ->  | UTP21: =IF(UTP6<=$F$30,PMT($F$29/12,$F$30*12,$F$28,0,0)*12,0) ->  | UWB21: =IF(UWB6<=$F$30,PMT($F$29/12,$F$30*12,$F$28,0,0)*12,0) ->  | UYN21: =IF(UYN6<=$F$30,PMT($F$29/12,$F$30*12,$F$28,0,0)*12,0) ->  | VAZ21: =IF(VAZ6<=$F$30,PMT($F$29/12,$F$30*12,$F$28,0,0)*12,0) ->  | VDL21: =IF(VDL6<=$F$30,PMT($F$29/12,$F$30*12,$F$28,0,0)*12,0) ->  | VFX21: =IF(VFX6<=$F$30,PMT($F$29/12,$F$30*12,$F$28,0,0)*12,0) ->  | VIJ21: =IF(VIJ6<=$F$30,PMT($F$29/12,$F$30*12,$F$28,0,0)*12,0) ->  | VKV21: =IF(VKV6<=$F$30,PMT($F$29/12,$F$30*12,$F$28,0,0)*12,0) ->  | VNH21: =IF(VNH6<=$F$30,PMT($F$29/12,$F$30*12,$F$28,0,0)*12,0) ->  | VPT21: =IF(VPT6<=$F$30,PMT($F$29/12,$F$30*12,$F$28,0,0)*12,0) ->  | VSF21: =IF(VSF6<=$F$30,PMT($F$29/12,$F$30*12,$F$28,0,0)*12,0) ->  | VUR21: =IF(VUR6<=$F$30,PMT($F$29/12,$F$30*12,$F$28,0,0)*12,0) ->  | VXD21: =IF(VXD6<=$F$30,PMT($F$29/12,$F$30*12,$F$28,0,0)*12,0) ->  | VZP21: =IF(VZP6<=$F$30,PMT($F$29/12,$F$30*12,$F$28,0,0)*12,0) ->  | WCB21: =IF(WCB6<=$F$30,PMT($F$29/12,$F$30*12,$F$28,0,0)*12,0) ->  | WEN21: =IF(WEN6<=$F$30,PMT($F$29/12,$F$30*12,$F$28,0,0)*12,0) ->  | WGZ21: =IF(WGZ6<=$F$30,PMT($F$29/12,$F$30*12,$F$28,0,0)*12,0) ->  | WJL21: =IF(WJL6<=$F$30,PMT($F$29/12,$F$30*12,$F$28,0,0)*12,0) ->  | WLX21: =IF(WLX6<=$F$30,PMT($F$29/12,$F$30*12,$F$28,0,0)*12,0) ->  | WOJ21: =IF(WOJ6<=$F$30,PMT($F$29/12,$F$30*12,$F$28,0,0)*12,0) ->  | WQV21: =IF(WQV6<=$F$30,PMT($F$29/12,$F$30*12,$F$28,0,0)*12,0) ->  | WTH21: =IF(WTH6<=$F$30,PMT($F$29/12,$F$30*12,$F$28,0,0)*12,0) ->  | WVT21: =IF(WVT6<=$F$30,PMT($F$29/12,$F$30*12,$F$28,0,0)*12,0) ->  | WYF21: =IF(WYF6<=$F$30,PMT($F$29/12,$F$30*12,$F$28,0,0)*12,0) ->  | XAR21: =IF(XAR6<=$F$30,PMT($F$29/12,$F$30*12,$F$28,0,0)*12,0) ->  | XDD21: =IF(XDD6<=$F$30,PMT($F$29/12,$F$30*12,$F$28,0,0)*12,0) -> 
AY22: 22 | BA22: =AF19 -> 
B23: Initial O&M Costs | E23: ($/yr) | F23: =IF(Cost!E6="Automatic",Cost!E14,Cost!E53) -> 10000 | AY23: 23 | BA23: =AG19 -> 
B24: Cost Escalator | E24: (%) | F24: 0.04 | AY24: 24 | BA24: =AH19 -> 
AY25: 25 | BA25: =AI19 -> 
B26: Initial Capital Investment | F26: =IF(Cost!E6="Automatic",Cost!E13,Cost!E42) ->  | AY26: 26 | BA26: =AJ19 -> 
B27: Grant Funding Value | F27: 25000 | AY27: 27 | BA27: =AK19 -> 
B28: Total Finance | F28: =F26-F27 ->  | AY28: 28 | BA28: =AL19 -> 
B29: Assumed Finance Rate | E29: (%) | F29: 0.05 | AY29: 29 | BA29: =AM19 -> 
B30: Financing Term | E30: (yr) | F30: 30 | AY30: 30 | BA30: =AN19 -> 
AY31: 31 | BA31: =AO19 -> 
B32: Average Annual Project Benefit Over Finance Period | E32: ($) | F32: 525431 | AY32: 32 | BA32: =AP19 -> 
B33: Simple Payback Period | E33: (yr) | F33: =IF(F28/F32>0,F28/F32,"Negative Payback Period") ->  | AY33: 33 | BA33: =AQ19 -> 
AY34: 34 | BA34: =AR19 -> 
AY35: 35 | BA35: =AS19 -> 
AY36: 36 | BA36: =AT19 -> 
AY37: 37 | BA37: =AU19 -> 
AY38: 38 | BA38: =AV19 -> 
AY39: 39 | BA39: =AW19 -> 
AY40: =AY39+1 -> 40 | BA40: =AX19 -> 

Sheet Environmental Benefit
A1: In-Conduit Hydropower Project Screening Tool
A2: Environmental Benefit
A4: Energy Production | G4: Notes
B6: Average Annual Energy | D6: (kWh) | E6: ='Financial '!F7 ->  | I6: Automatic
I7: Manual
A9: Environmental Benefit | G9: Notes
B11: Carbon Dioxide | D11: (lb/kWh) | E11: 1.52
B12: Sulfur Dioxide | D12: (lb/kWh) | E12: 0.008
B13: Nitrogen Oxides | D13: (lb/kWh) | E13: 0.0049
B15: Avoided Annual Carbon Dioxide Emissions | D15: (lbs) | E15: =$E$6*E11 -> 
B16: Avoided Annual Sulfur Dioxide Emissions | D16: (lbs) | E16: =$E$6*E12 -> 
B17: Avoided Annual Nitrogen Oxides Emissions | D17: (lbs) | E17: =$E$6*E13 -> 

Sheet Summary
A6: In-Conduit Hydropower Project Screening Tool
A7: Conventional Hydropower Summary
B10: Summary Critical Site Parameters
B12: Project Name | E12: =Project_Name -> 0
B13: Project Location | E13: =Project_Location -> 0
B14: Project Type | E14: =Facility_Type -> Water Supply
B15: Peak Power | D15: (kW) | E15: ='Financial '!F15 -> 
B16: Average Annual Energy | D16: (kWh) | E16: ='Financial '!F16 -> 
B17: Turbine Type | E17: =Equipment!G11 -> N/A
B18: Initial Capital Investment | D18: ($) | E18: ='Financial '!F26 -> 
B19: Simple Payback Period | D19: (yr) | E19: ='Financial '!F33 -> 
A33: Version 1.0 | F33: January 2014
